Workbook

Sheet 1. Info
AB1: Algoma Power Inc.
AB2: Atikokan Hydro Inc.
AB3: Attawapiskat Power Corporation
AB4: Bluewater Power Distribution Corporation
AB5: Brant County Power Inc.
AB6: Brantford Power Inc.
AB7: Burlington Hydro Inc.
AB8: Cambridge and North Dumfries Hydro Inc.
AB9: Canadian Niagara Power Inc.
AB10: Centre Wellington Hydro Ltd.
AB11: Chapleau Public Utilities Corporation
AB12: COLLUS PowerStream Corp.
A13: Drop-down lists are shaded blue; Input cells are shaded green. | AB13: Cooperative Hydro Embrun Inc.
AB14: E.L.K. Energy Inc.
C15: Utility Name | D15: Brantford Power Inc. | AB15: Enersource Hydro Mississauga Inc.
AB16: Entegrus Powerlines Inc.
C17: Service Territory | D17: Brantford ON | AB17: EnWin Utilities Ltd.
AB18: Erie Thames Powerlines Corporation
C19: Assigned EB Number | D19: EB-2016-#### | AB19: Espanola Regional Hydro Distribution Corporation
AB20: Essex Powerlines Corporation
C21: Name and Title | D21: Brian D'Amboise, CFO and VP Corporate Services | AB21: Festival Hydro Inc.
AB22: Fort Albany Power Corporation
C23: Phone Number | D23: 519-751-3522 ext. 5133 | AB23: Fort Frances Power Corporation
AB24: Greater Sudbury Hydro Inc.
C25: Email Address | D25: bdamboise@brantford.ca | AB25: Grimsby Power Inc.
AB26: Guelph Hydro Electric Systems Inc.
C27: Date | D27: 29/04/2016 | AB27: Haldimand County Hydro Inc.
AB28: Halton Hills Hydro Inc.
C29: Last COS Re-based Year | D29: 2013 | AB29: Hearst Power Distribution Company Limited
AB30: Horizon Utilities Corporation
AB31: Hydro 2000 Inc.
AB32: Hydro Hawkesbury Inc.
AB33: Hydro One Brampton Networks Inc.
AB34: Hydro One Networks Inc.
AB35: Hydro One Remote Communities Inc.
AB36: Hydro Ottawa Limited
AB37: Innpower Corporation
AB38: Kashechewan Power Corporation
AB39: Kenora Hydro Electric Corporation Ltd.
AB40: Kingston Hydro Corporation
AB41: Kitchener-Wilmot Hydro Inc.
AB42: Lakefront Utilities Inc.
AB43: Lakeland Power Distribution Ltd.
AB44: London Hydro Inc.
AB45: Midland Power Utility Corporation
AB46: Milton Hydro Distribution Inc.
AB47: Newmarket-Tay Power Distribution Ltd.
AB48: Niagara Peninsula Energy Inc.
AB49: Niagara-on-the-Lake Hydro Inc.
AB50: Norfolk Power Distribution Inc.
AB51: North Bay Hydro Distribution Limited
AB52: Northern Ontario Wires Inc.
AB53: Oakville Hydro Electricity Distribution Inc.
AB54: Orangeville Hydro Limited
AB55: Orillia Power Distribution Corporation
AB56: Oshawa PUC Networks Inc.
AB57: Ottawa River Power Corporation
AB58: Peterborough Distribution Incorporated
AB59: PowerStream Inc.
AB60: PUC Distribution Inc.
AB61: Renfrew Hydro Inc.
AB62: Rideau St. Lawrence Distribution Inc.
AB63: Sioux Lookout Hydro Inc.
AB64: St. Thomas Energy Inc.
AB65: Thunder Bay Hydro Electricity Distribution Inc.
AB66: Tillsonburg Hydro Inc.
AB67: Toronto Hydro-Electric System Limited
AB68: Veridian Connections Inc.
AB69: Wasaga Distribution Inc.
AB70: Waterloo North Hydro Inc.
AB71: Welland Hydro-Electric System Corp.
AB72: Wellington North Power Inc.
AB73: West Coast Huron Energy Inc.
AB74: Westario Power Inc.
AB75: Whitby Hydro Electric Corporation
AB76: Woodstock Hydro Services Inc.

Sheet 2. Table of Contents
D20: 1. Info | I20: 6. Historical Wholesale
D22: 2. Table of Contents | I22: 7. Current Wholesale
D24: 3. Rate Classes | I24: 8. Forecast Wholesale
D26: 4. RRR Data | I26: 9. RTSR Rates to Forecast
D28: 5. UTRs and Sub-Transmission

Sheet 3. Rate Classes
C13: 1. Select the appropriate rate classes that appear on your most recent Board-Approved Tariff of Rates and Charges. 2. Enter the RTS Network and Connection Rate as it appears on the Tariff of Rates and Charges
C15: Rate Class | E15: Unit | G15: RTSR-Network | I15: RTSR-Connection
C17: Residential | E17: kWh | G17: 0.0082 | I17: 0.0056 | L17: =IF(OR(ISBLANK(C17), ISERROR(FIND("Choose", C17))=FALSE), 0, 1) -> 1 | M17: ="C" & ROW(C17) -> C17 | N17: =IF(OR(C17="General Service Intermediate Rate Class 1,000 To 4,999 kW (formerly General Service > 50 kW Customers)", C17="General Service Intermediate Rate Class 1,000 To 4,999 kW (formerly Large Use Customers)"), "x", "") ->  | W17: Choose Rate Class
C18: General Service Less Than 50 kW | E18: kWh | G18: 0.0073 | I18: 0.0049 | L18: 1 | M18: C18 | N18: =IF(OR(C18="General Service Intermediate Rate Class 1,000 To 4,999 kW (formerly General Service > 50 kW Customers)", C18="General Service Intermediate Rate Class 1,000 To 4,999 kW (formerly Large Use Customers)"), "x", "") ->  | W18: Residential
C19: General Service 50 to 4,999 kW | E19: kW | G19: 2.5047 | I19: 1.6685 | L19: 1 | M19: C19 | W19: Residential Regular
C20: Unmetered Scattered Load | E20: kWh | G20: 0.0043 | I20: 0.0049 | L20: 1 | M20: C20 | W20: Residential Urban
C21: Street Lighting | E21: kW | G21: 2.4098 | I21: 1.5403 | L21: 1 | M21: C21 | W21: Residential Urban Year-Round
C22: Sentinel Lighting | E22: kW | G22: 2.3389 | I22: 1.5583 | L22: 1 | M22: C22 | W22: Residential Suburban
C23: Embedded Distributor | E23: kW | G23: 2.5047 | I23: 1.6685 | L23: 1 | M23: C23 | W23: Residential Suburban Seasonal
C24: Choose Rate Class | L24: 0 | M24: C24 | W24: Residential Suburban Year Round
C25: Choose Rate Class | L25: 0 | M25: C25 | W25: Residential - Time of Use
C26: Choose Rate Class | L26: 0 | M26: C26 | W26: Residential - Hensall
C27: Choose Rate Class | L27: 0 | M27: C27 | W27: Residential – High Density [R1]
C28: Choose Rate Class | L28: 0 | M28: C28 | W28: Residential – Normal Density [R2]
C29: Choose Rate Class | L29: 0 | M29: C29 | W29: Seasonal Residential – High Density [R3]
C30: Choose Rate Class | L30: 0 | M30: C30 | W30: Seasonal Residential – Normal Density [R4]
C31: Choose Rate Class | L31: 0 | M31: C31 | W31: Residential – Urban [UR]
C32: Choose Rate Class | L32: 0 | M32: C32 | W32: General Service Less Than 50 kW
C33: Choose Rate Class | L33: 0 | M33: C33 | W33: General Service Less Than 50 kW – Single Phase energy-billed [G1]
C34: Choose Rate Class | L34: 0 | M34: C34 | W34: General Service Less Than 50 kW – Three Phase energy-billed [G3]
C35: Choose Rate Class | L35: 0 | M35: C35 | W35: General Service Less Than 50 kW – Transmission Class energy-billed [T]
C36: Choose Rate Class | L36: 0 | M36: C36 | W36: General Service Less Than 50 kW – Urban energy-billed [UG]
C37: Choose Rate Class | L37: 0 | M37: C37 | W37: Westport Sewage Treatment Plant
C38: Choose Rate Class | L38: 0 | M38: C38 | W38: Small Commercial and USL - per meter
N39: =COUNTIF(N17:N38, "x") -> 0 | W39: Small Commercial and USL - per connection
W40: Farms – Single Phase energy-billed [F1]
W41: General Service 50 to 499 kW
W42: General Service 50 to 699 kW
W43: General Service 50 to 999 kW
W44: General Service 50 to 999 kW - Interval Metered
W45: General Service 50 to 1,000 kW
W46: General Service 50 to 1,000 kW - Interval Meters
W47: General Service 50 to 1,000 kW - Non Interval Meters
W48: General Service 50 to 1,499 kW
W49: General Service 50 to 1,499 kW - Interval Metered
W50: General Service 50 to 2,499 kW
W51: General Service 50 to 2,999 kW
W52: General Service 50 to 2,999 kW - Time of Use
W53: General Service 50 to 4,999 kW
W54: General Service 50 to 4,999 kW – Interval Metered
W55: General Service 50 to 4,999 kW - Time of Use
W56: General Service 50 to 4,999 kW (CoGeneration)
W57: General Service 50 to 4,999 kW (formerly Time of Use)
W58: General Service 500 to 4,999 kW
W59: General Service 700 to 4,999 kW
W60: General Service 1,000 to 2,999 kW
W61: General Service 1,000 to 4,999 kW
W62: General Service 1,000 to 4,999 kW - Interval Meters
W63: General Service 1,000 To 4,999 kW (co-generation)
W64: General Service Greater Than 1,000 kW
W65: General Service Intermediate Rate Class 1,000 To 4,999 kW (formerly Large Use Customers)
W66: General Service Intermediate Rate Class 1,000 To 4,999 kW (formerly General Service > 50 kW Customers)
W67: General Service 1,500 to 4,999 kW
W68: General Service Equal To Or Greater Than 1,500 kW
W69: General Service Equal To Or Greater Than 1,500 kW - Interval Metered
W70: General Service Intermediate 1,000 To 4,999 kW
W71: General Service 2,500 to 4,999 kW
W72: General Service 3,000 to 4,999 kW
W73: General Service 3,000 to 4,999 kW - Interval Metered
W74: General Service 3,000 to 4,999 kW - Intermediate Use
W75: General Service 3,000 to 4,999 kW - Time of Use
W76: Intermediate With Self Generation
W77: General Service - Commercial
W78: General Service - Institutional
W79: Farms – Three Phase energy-billed [F3]
W80: Large Use
W81: Large Use - Regular
W82: Large Use > 5000 kW
W83: Large Use - 3TS
W84: Large Use - Ford Annex
W85: Unmetered Scattered Load
W86: Sentinel Lighting
W87: Street Lighting
W88: Embedded Distributor
W89: Low Voltage Wheeling Charge Rate
W90: Stand-By
W91: Standby Power
W92: Standby Power – INTERIM APPROVAL
W93: Standby Power - APPROVED ON AN INTERIM BASIS
W94: Standby - General Service 50 - 1,000 kW
W95: Standby Power General Service 50 to 1,499 kW
W96: Standby - General Service 1,000 - 5,000 kW
W97: Standby Power General Service 1,500 to 4,999 kW
W98: Standby - Large Use
W99: Standby Power General Service Large Use
W100: Standby Distribution Service

Sheet 4. RRR Data
B15: Rate Class | C15: Rate Description | D15: Unit | E15: Rate | F15: Non-Loss Adjusted Metered kWh | G15: Non-Loss Adjusted Metered kW | H15: Applicable Loss Factor eg: (1.0325) | I15: Loss Adjusted Billed kWh
B17: Residential | C17: RTSR - Network | D17: kWh | E17: 0.0082 | F17: 287594336 | H17: 1.032 | I17: =F17*H17 -> 296797354.8
B18: Residential | C18: RTSR - Connection | D18: kWh | E18: 0.0056 | F18: 287594336 | H18: 1.032 | I18: =F18*H18 -> 296797354.8
B19: General Service Less Than 50 kW | C19: RTSR - Network | D19: kWh | E19: 0.0073 | F19: 100078635 | H19: 1.032 | I19: =F19*H19 -> 103281151.3
B20: General Service Less Than 50 kW | C20: RTSR - Connection | D20: kWh | E20: 0.0049 | F20: 100078635 | H20: 1.032 | I20: =F20*H20 -> 103281151.3
B21: General Service 50 to 4,999 kW | C21: RTSR - Network | D21: kW | E21: 2.5047 | F21: 514679223.6 | G21: 1400645.34
B22: General Service 50 to 4,999 kW | C22: RTSR - Connection | D22: kW | E22: 1.6685 | F22: 514679223.6 | G22: 1400645.34
B23: Unmetered Scattered Load | C23: RTSR - Network | D23: kWh | E23: 0.0043 | F23: 1516114 | H23: 1.032 | I23: =F23*H23 -> 1564629.648
B24: Unmetered Scattered Load | C24: RTSR - Connection | D24: kWh | E24: 0.0049 | F24: 1516114 | H24: 1.032 | I24: =F24*H24 -> 1564629.648
B25: Street Lighting | C25: RTSR - Network | D25: kW | E25: 2.4098 | F25: 7369714 | G25: 22527
B26: Street Lighting | C26: RTSR - Connection | D26: kW | E26: 1.5403 | F26: 7369714 | G26: 22527
B27: Sentinel Lighting | C27: RTSR - Network | D27: kW | E27: 2.3389 | F27: 446247 | G27: 1363.293924
B28: Sentinel Lighting | C28: RTSR - Connection | D28: kW | E28: 1.5583 | F28: 446247 | G28: 1363.293924
B29: Embedded Distributor | C29: RTSR - Network | D29: kW | E29: 2.5047 | G29: 142203.42
B30: Embedded Distributor | C30: RTSR - Connection | D30: kW | E30: 1.6685 | G30: 142203.42

Sheet 5. UTRs and Sub-Transmission
B18: Uniform Transmission Rates | C18: Unit | E18: Effective January 1, 2015 | G18: Effective January 1, 2016 | I18: Effective January 1, 2017
B20: Rate Description | E20: Rate | G20: Rate | I20: Rate
B22: Network Service Rate | C22: kW | E22: 3.78 | G22: 3.66 | I22: =G22 -> 3.66
B24: Line Connection Service Rate | C24: kW | E24: 0.86 | G24: 0.87 | I24: =G24 -> 0.87
B26: Transformation Connection Service Rate | C26: kW | E26: 2 | G26: 2.02 | I26: =G26 -> 2.02
B29: Hydro One Sub-Transmission Rates | C29: Unit | E29: Effective January 1, 2014 to April 30, 2015 | G29: Effective May 1, 2016 | I29: Effective January 1, 2017
B33: Rate Description | E33: Rate | G33: Rate | I33: Rate
B35: Network Service Rate | C35: kW
B37: Line Connection Service Rate | C37: kW
B39: Transformation Connection Service Rate | C39: kW
B41: Both Line and Transformation Connection Service Rate | C41: kW | E41: =SUM(E39,E37) -> 0 | G41: =SUM(G39,G37) -> 0 | I41: =SUM(I39,I37) -> 0
B44: If needed, add extra host here. (Brant County/Energy+) | C44: Unit | E44: Effective January 1, 2015 | G44: Effective January 1, 2016 | I44: Effective January 1, 2017
B48: Rate Description | E48: Rate | G48: Rate | I48: Rate
B50: Network Service Rate | C50: kW | E50: 1.9125 | G50: 1.8553 | I50: 2.3678
B52: Line Connection Service Rate | C52: kW | E52: 0.7542 | G52: 0.7541 | I52: 1.218
B54: Transformation Connection Service Rate | C54: kW
B56: Both Line and Transformation Connection Service Rate | C56: kW | E56: =SUM(E52,E54) -> 0.7542 | G56: =SUM(G52,G54) -> 0.7541 | I56: =I54+I52 -> 1.218
B59: If needed, add extra host here. (II) | C59: Unit | E59: Effective January 1, 2015 | G59: Effective January 1, 2016 | I59: Effective January 1, 2017
B63: Rate Description | E63: Rate | G63: Rate | I63: Rate
B65: Network Service Rate | C65: kW
B67: Line Connection Service Rate | C67: kW
B69: Transformation Connection Service Rate | C69: kW
B71: Both Line and Transformation Connection Service Rate | C71: kW | E71: =SUM(E67,E69) -> 0 | G71: =SUM(G67,G69) -> 0 | I71: =I69+I67 -> 0
B75: Hydro One Sub-Transmission Rate Rider 9A | C75: Unit | E75: Effective January 1, 2015 | G75: Effective January 1, 2016 | I75: Effective January 1, 2017
B77: Rate Description | E77: Rate | G77: Rate | I77: Rate
B79: RSVA Transmission network – 4714 – which affects 1584 | C79: kW | E79: 0.1465 | G79: 0 | I79: 0
B81: RSVA Transmission connection – 4716 – which affects 1586 | C81: kW | E81: 0.0667 | G81: 0 | I81: 0
B83: RSVA LV – 4750 – which affects 1550 | C83: kW | E83: 0.0475 | G83: 0 | I83: 0
B85: RARA 1 – 2252 – which affects 1590 | C85: kW | E85: 0.0419 | G85: 0 | I85: 0
B87: RARA 1 – 2252 – which affects 1590 (2008) | C87: kW | E87: -0.027 | G87: 0 | I87: 0
B89: RARA 1 – 2252 – which affects 1590 (2009) | C89: kW | E89: -0.0006 | G89: 0 | I89: 0
B91: Hydro One Sub-Transmission Rate Rider 9A | C91: kW | E91: 0.275 | G91: 0 | I91: =SUM(I79:I89) -> 0
E94: Historical 2014 | G94: Current 2015 | I94: Forecast 2016
B95: Low Voltage Switchgear Credit (if applicable, enter as a negative value) | C95: $

Sheet 6. Historical Wholesale
B21: IESO | D21: Network | H21: Line Connection | L21: Transformation Connection | P21: Total Line
B22: Month | D22: Units Billed | E22: Rate | F22: Amount | H22: Units Billed | I22: Rate | J22: Amount | L22: Units Billed | M22: Rate | N22: Amount | P22: Amount
B24: January | D24: 166884 | E24: 3.78 | F24: 630821.52 | H24: 174998 | I24: 0.86 | J24: 150498.28 | L24: 139534 | M24: 2 | N24: 279068 | P24: =J24+N24 -> 429566.28
B25: February | D25: 154003 | E25: 3.78 | F25: 582131.34 | H25: 159074 | I25: 0.86 | J25: 136803.64 | L25: 122605 | M25: 2 | N25: 245210 | P25: 382013.64
B26: March | D26: 146629 | E26: 3.78 | F26: 554257.62 | H26: 150053 | I26: 0.86 | J26: 129045.58 | L26: 122842 | M26: 2 | N26: 245684 | P26: 374729.58
B27: April | D27: 135701 | E27: 3.78 | F27: 512949.78 | H27: 165375.6395 | I27: 0.86 | J27: 142223.05 | L27: 134927.59 | M27: 2 | N27: 269855.18 | P27: 412078.23
B28: May | D28: 157205 | E28: 3.78 | F28: 594234.9 | H28: 169311 | I28: 0.86 | J28: 145607.46 | L28: 131309 | M28: 2 | N28: 262618 | P28: 408225.46
B29: June | D29: 166742 | E29: 3.78 | F29: 630284.76 | H29: 173557 | I29: 0.86 | J29: 149259.02 | L29: 146103 | M29: 2 | N29: 292206 | P29: 441465.02
B30: July | D30: 190668 | E30: 3.78 | F30: 720725.04 | H30: 196784 | I30: 0.8600002033 | J30: 169234.28 | L30: 162032 | M30: 2 | N30: 324064 | P30: 493298.28
B31: August | D31: 184627 | E31: 3.78 | F31: 697890.06 | H31: 185662 | I31: 0.86 | J31: 159669.32 | L31: 147396 | M31: 2 | N31: 294792 | P31: 454461.32
B32: September | D32: 187657 | E32: 3.78 | F32: 709343.46 | H32: 194446 | I32: 0.86 | J32: 167223.56 | L32: 151845 | M32: 2 | N32: 303690 | P32: 470913.56
B33: October | D33: 127653 | E33: 3.78 | F33: 482528.34 | H33: 140155 | I33: 0.86 | J33: 120533.3 | L33: 113977 | M33: 2 | N33: 227954 | P33: 348487.3
B34: November | D34: 135915 | E34: 3.78 | F34: 513758.7 | H34: 147820 | I34: 0.86 | J34: 127125.2 | L34: 115583 | M34: 2 | N34: 231166 | P34: 358291.2
B35: December | D35: 138071 | E35: 3.78 | F35: 521908.38 | H35: 143100 | I35: 0.86 | J35: 123066 | L35: 113992 | M35: 2 | N35: 227984 | P35: 351050
B37: Total | D37: =SUM(D24:D35) -> 1891755 | E37: =IF(D37<>0,F37/D37,0) -> 3.78 | F37: =SUM(F24:F35) -> 7150833.9 | H37: =SUM(H24:H35) -> 2000335.64 | I37: =IF(H37<>0,J37/H37,0) -> 0.86000002 | J37: =SUM(J24:J35) -> 1720288.69 | L37: =SUM(L24:L35) -> 1602145.59 | M37: =IF(L37<>0,N37/L37,0) -> 2 | N37: =SUM(N24:N35) -> 3204291.18 | P37: =SUM(P24:P35) -> 4924579.87
B39: Hydro One | D39: Network | H39: Line Connection | L39: Transformation Connection | P39: Total Line
B41: Month | D41: Units Billed | E41: Rate | F41: Amount | H41: Units Billed | I41: Rate | J41: Amount | L41: Units Billed | M41: Rate | N41: Amount | P41: Amount
B43: January | E43: =IF(D43<>0,F43/D43,0) -> 0 | I43: =IF(H43<>0,J43/H43,0) -> 0 | M43: =IF(L43<>0,N43/L43,0) -> 0 | P43: =J43+N43 -> 0
B44: February | E44: =IF(D44<>0,F44/D44,0) -> 0 | I44: =IF(H44<>0,J44/H44,0) -> 0 | M44: =IF(L44<>0,N44/L44,0) -> 0 | P44: 0
B45: March | E45: 0 | I45: 0 | M45: 0 | P45: 0
B46: April | E46: 0 | I46: 0 | M46: 0 | P46: 0
B47: May | E47: 0 | I47: 0 | M47: 0 | P47: 0
B48: June | E48: 0 | I48: 0 | M48: 0 | P48: 0
B49: July | E49: 0 | I49: 0 | M49: 0 | P49: 0
B50: August | E50: 0 | I50: 0 | M50: 0 | P50: 0
B51: September | E51: 0 | I51: 0 | M51: 0 | P51: 0
B52: October | E52: 0 | I52: 0 | M52: 0 | P52: 0
B53: November | E53: 0 | I53: 0 | M53: 0 | P53: 0
B54: December | E54: 0 | I54: 0 | M54: 0 | P54: 0
B56: Total | D56: =SUM(D43:D54) -> 0 | E56: =IF(D56<>0,F56/D56,0) -> 0 | F56: =SUM(F43:F54) -> 0 | H56: =SUM(H43:H54) -> 0 | I56: =IF(H56<>0,J56/H56,0) -> 0 | J56: =SUM(J43:J54) -> 0 | L56: =SUM(L43:L54) -> 0 | M56: =IF(L56<>0,N56/L56,0) -> 0 | N56: =SUM(N43:N54) -> 0 | P56: =SUM(P43:P54) -> 0
B58: Add Extra Host Here (I) | D58: Network | H58: Line Connection | L58: Transformation Connection | P58: Total Line
B59: (if needed)
B60: Month | D60: Units Billed | E60: Rate | F60: Amount | H60: Units Billed | I60: Rate | J60: Amount | L60: Units Billed | M60: Rate | N60: Amount | P60: Amount
B62: January | D62: 14.26 | E62: 1.912342216 | F62: 27.27 | H62: 15.54 | I62: 0.7541827542 | J62: 11.72 | M62: 0 | P62: =J62+N62 -> 11.72
B63: February | D63: 15.22 | E63: 1.91261498 | F63: 29.11 | H63: 16.29 | I63: 0.7544505832 | J63: 12.29 | M63: 0 | P63: 12.29
B64: March | D64: 15.15 | E64: 1.912211221 | F64: 28.97 | H64: 15.29 | I64: 0.754087639 | J64: 11.53 | M64: 0 | P64: 11.53
B65: April | D65: 14.54 | E65: 1.912654746 | F65: 27.81 | H65: 18.18 | I65: 0.7541254125 | J65: 13.71 | M65: 0 | P65: 13.71
B66: May | D66: 79.75 | E66: 1.855297806 | F66: 147.96 | H66: 108.5 | I66: 0.7541013825 | J66: 81.82 | M66: 0 | P66: 81.82
B67: June | D67: 122.17 | E67: 1.855283621 | F67: 226.66 | H67: 140.74 | I67: 0.7540855478 | J67: 106.13 | M67: 0 | P67: 106.13
B68: July | D68: 187.11 | E68: 1.855325744 | F68: 347.15 | H68: 223.98 | I68: 0.7540851862 | J68: 168.9 | M68: 0 | P68: 168.9
B69: August | D69: 173.49 | E69: 1.855323073 | F69: 321.88 | H69: 214.83 | I69: 0.7540846251 | J69: 162 | M69: 0 | P69: 162
B70: September | D70: 174 | E70: 1.855287356 | F70: 322.82 | H70: 251.34 | I70: 0.7541179279 | J70: 189.54 | M70: 0 | P70: 189.54
B71: October | D71: 81.73 | E71: 1.855255108 | F71: 151.63 | H71: 103.71 | I71: 0.7541220712 | J71: 78.21 | M71: 0 | P71: 78.21
B72: November | D72: 13.73 | E72: 1.855061908 | F72: 25.47 | H72: 15.08 | I72: 0.7539787798 | J72: 11.37 | M72: 0 | P72: 11.37
B73: December | D73: 14.75 | E73: 1.85559322 | F73: 27.37 | H73: 15.39 | I73: 0.7543859649 | J73: 11.61 | M73: 0 | P73: 11.61
B75: Total | D75: =SUM(D62:D73) -> 905.9 | E75: =IF(D75<>0,F75/D75,0) -> 1.859035214 | F75: =SUM(F62:F73) -> 1684.1 | H75: =SUM(H62:H73) -> 1138.87 | I75: =IF(H75<>0,J75/H75,0) -> 0.7541071413 | J75: =SUM(J62:J73) -> 858.83 | L75: =SUM(L62:L73) -> 0 | M75: =IF(L75<>0,N75/L75,0) -> 0 | N75: =SUM(N62:N73) -> 0 | P75: =SUM(P62:P73) -> 858.83
B77: Add Extra Host Here (II) | D77: Network | H77: Line Connection | L77: Transformation Connection | P77: Total Line
B78: (if needed)
B79: Month | D79: Units Billed | E79: Rate | F79: Amount | H79: Units Billed | I79: Rate | J79: Amount | L79: Units Billed | M79: Rate | N79: Amount | P79: Amount
B81: January | E81: =IF(D81<>0,F81/D81,0) -> 0 | I81: =IF(H81<>0,J81/H81,0) -> 0 | M81: =IF(L81<>0,N81/L81,0) -> 0 | P81: =J81+N81 -> 0
B82: February | E82: 0 | I82: 0 | M82: 0 | P82: 0
B83: March | E83: 0 | I83: 0 | M83: 0 | P83: 0
B84: April | E84: 0 | I84: 0 | M84: 0 | P84: 0
B85: May | E85: 0 | I85: 0 | M85: 0 | P85: 0
B86: June | E86: 0 | I86: 0 | M86: 0 | P86: 0
B87: July | E87: 0 | I87: 0 | M87: 0 | P87: 0
B88: August | E88: 0 | I88: 0 | M88: 0 | P88: 0
B89: September | E89: 0 | I89: 0 | M89: 0 | P89: 0
B90: October | E90: 0 | I90: 0 | M90: 0 | P90: 0
B91: November | E91: 0 | I91: 0 | M91: 0 | P91: 0
B92: December | E92: 0 | I92: 0 | M92: 0 | P92: 0
B94: Total | D94: =SUM(D81:D92) -> 0 | E94: =IF(D94<>0,F94/D94,0) -> 0 | F94: =SUM(F81:F92) -> 0 | H94: =SUM(H81:H92) -> 0 | I94: =IF(H94<>0,J94/H94,0) -> 0 | J94: =SUM(J81:J92) -> 0 | L94: =SUM(L81:L92) -> 0 | M94: =IF(L94<>0,N94/L94,0) -> 0 | N94: =SUM(N81:N92) -> 0 | P94: =SUM(P81:P92) -> 0
B96: Total | D96: Network | H96: Line Connection | L96: Transformation Connection | P96: Total Line
B98: Month | D98: Units Billed | E98: Rate | F98: Amount | H98: Units Billed | I98: Rate | J98: Amount | L98: Units Billed | M98: Rate | N98: Amount | P98: Amount
B100: January | D100: =D24+D43+D62+D81 -> 166898.26 | E100: =IF(D100<>0,F100/D100,0) -> 3.779840425 | F100: =F24+F43+F62+F81 -> 630848.79 | H100: =H24+H43+H62+H81 -> 175013.54 | I100: =IF(H100<>0,J100/H100,0) -> 0.8599906042 | J100: =J24+J43+J62+J81 -> 150510 | L100: =L24+L43+L62+L81 -> 139534 | M100: =IF(L100<>0,N100/L100,0) -> 2 | N100: =N24+N43+N62+N81 -> 279068 | P100: =J100+N100 -> 429578
B101: February | D101: =D25+D44+D63+D82 -> 154018.22 | E101: 3.779815466 | F101: =F25+F44+F63+F82 -> 582160.45 | H101: =H25+H44+H63+H82 -> 159090.29 | I101: 0.8599891923 | J101: =J25+J44+J63+J82 -> 136815.93 | L101: =L25+L44+L63+L82 -> 122605 | M101: 2 | N101: =N25+N44+N63+N82 -> 245210 | P101: 382025.93
B102: March | D102: 146644.15 | E102: 3.779807036 | F102: 554286.59 | H102: 150068.29 | I102: 0.8599892089 | J102: 129057.11 | L102: 122842 | M102: 2 | N102: 245684 | P102: 374741.11
B103: April | D103: 135715.54 | E103: 3.77979994 | F103: 512977.59 | H103: 165393.8195 | I103: 0.8599883623 | J103: 142236.76 | L103: 134927.59 | M103: 2 | N103: 269855.18 | P103: 412091.94
B104: May | D104: 157284.75 | E104: 3.779024095 | F104: 594382.86 | H104: 169419.5 | I104: 0.8599321802 | J104: 145689.28 | L104: 131309 | M104: 2 | N104: 262618 | P104: 408307.28
B105: June | D105: 166864.17 | E105: 3.778590814 | F105: 630511.42 | H105: 173697.74 | I105: 0.859914182 | J105: 149365.15 | L105: 146103 | M105: 2 | N105: 292206 | P105: 441571.15
B106: July | D106: 190855.11 | E106: 3.778113093 | F106: 721072.19 | H106: 197007.98 | I106: 0.8598797876 | J106: 169403.18 | L106: 162032 | M106: 2 | N106: 324064 | P106: 493467.18
B107: August | D107: 184800.49 | E107: 3.778193121 | F107: 698211.94 | H107: 185876.83 | I107: 0.8598775867 | J107: 159831.32 | L107: 147396 | M107: 2 | N107: 294792 | P107: 454623.32
B108: September | D108: 187831 | E108: 3.778217014 | F108: 709666.28 | H108: 194697.34 | I108: 0.859863314 | J108: 167413.1 | L108: 151845 | M108: 2 | N108: 303690 | P108: 471103.1
B109: October | D109: 127734.73 | E109: 3.778768468 | F109: 482679.97 | H109: 140258.71 | I109: 0.8599217118 | J109: 120611.51 | L109: 113977 | M109: 2 | N109: 227954 | P109: 348565.51
B110: November | D110: 135928.73 | E110: 3.779805564 | F110: 513784.17 | H110: 147835.08 | I110: 0.8599891852 | J110: 127136.57 | L110: 115583 | M110: 2 | N110: 231166 | P110: 358302.57
B111: December | D111: 138085.75 | E111: 3.779794439 | F111: 521935.75 | H111: 143115.39 | I111: 0.8599886427 | J111: 123077.61 | L111: 113992 | M111: 2 | N111: 227984 | P111: 351061.61
B113: Total | D113: =SUM(D100:D111) -> 1892660.9 | E113: =IF(D113<>0,F113/D113,0) -> 3.779080553 | F113: =SUM(F100:F111) -> 7152518 | H113: =SUM(H100:H111) -> 2001474.51 | I113: =IF(H113<>0,J113/H113,0) -> 0.8599397653 | J113: =SUM(J100:J111) -> 1721147.52 | L113: =SUM(L100:L111) -> 1602145.59 | M113: =IF(L113<>0,N113/L113,0) -> 2 | N113: =SUM(N100:N111) -> 3204291.18 | P113: =SUM(P100:P111) -> 4925438.7
N115: Low Voltage Switchgear Credit (if applicable) | P115: ='5. UTRs and Sub-Transmission'!E95 -> 0
N117: Total including deduction for Low Voltage Switchgear Credit | P117: =P113+P115 -> 4925438.7

Sheet 7. Current Wholesale
B13: The purpose of this sheet is to calculate the expected billing when current 2015 2016Uniform Transmission Rates are applied against historical 2014 2015 transmission units.
B20: IESO | D20: Network | H20: Line Connection | L20: Transformation Connection | P20: Total Line
B22: Month | D22: Units Billed | E22: Rate | F22: Amount | H22: Units Billed | I22: Rate | J22: Amount | L22: Units Billed | M22: Rate | N22: Amount | P22: Amount
B24: January | D24: ='6. Historical Wholesale'!D24 -> 166884 | E24: ='5. UTRs and Sub-Transmission'!G22 -> 3.66 | F24: =D24*E24 -> 610795.44 | H24: ='6. Historical Wholesale'!H24 -> 174998 | I24: ='5. UTRs and Sub-Transmission'!G24 -> 0.87 | J24: =H24*I24 -> 152248.26 | L24: ='6. Historical Wholesale'!L24 -> 139534 | M24: ='5. UTRs and Sub-Transmission'!G26 -> 2.02 | N24: =L24*M24 -> 281858.68 | P24: =J24+N24 -> 434106.94
B25: February | D25: ='6. Historical Wholesale'!D25 -> 154003 | E25: =E24 -> 3.66 | F25: =D25*E25 -> 563650.98 | H25: ='6. Historical Wholesale'!H25 -> 159074 | I25: =I24 -> 0.87 | J25: =H25*I25 -> 138394.38 | L25: ='6. Historical Wholesale'!L25 -> 122605 | M25: =M24 -> 2.02 | N25: =L25*M25 -> 247662.1 | P25: 386056.48
B26: March | D26: ='6. Historical Wholesale'!D26 -> 146629 | E26: =E25 -> 3.66 | F26: 536662.14 | H26: ='6. Historical Wholesale'!H26 -> 150053 | I26: =I25 -> 0.87 | J26: 130546.11 | L26: ='6. Historical Wholesale'!L26 -> 122842 | M26: =M25 -> 2.02 | N26: 248140.84 | P26: 378686.95
B27: April | D27: ='6. Historical Wholesale'!D27 -> 135701 | E27: 3.66 | F27: 496665.66 | H27: ='6. Historical Wholesale'!H27 -> 165375.6395 | I27: 0.87 | J27: 143876.8064 | L27: ='6. Historical Wholesale'!L27 -> 134927.59 | M27: 2.02 | N27: 272553.7318 | P27: 416430.5382
B28: May | D28: ='6. Historical Wholesale'!D28 -> 157205 | E28: 3.66 | F28: 575370.3 | H28: ='6. Historical Wholesale'!H28 -> 169311 | I28: 0.87 | J28: 147300.57 | L28: ='6. Historical Wholesale'!L28 -> 131309 | M28: 2.02 | N28: 265244.18 | P28: 412544.75
B29: June | D29: ='6. Historical Wholesale'!D29 -> 166742 | E29: 3.66 | F29: 610275.72 | H29: ='6. Historical Wholesale'!H29 -> 173557 | I29: 0.87 | J29: 150994.59 | L29: ='6. Historical Wholesale'!L29 -> 146103 | M29: 2.02 | N29: 295128.06 | P29: 446122.65
B30: July | D30: ='6. Historical Wholesale'!D30 -> 190668 | E30: 3.66 | F30: 697844.88 | H30: ='6. Historical Wholesale'!H30 -> 196784 | I30: 0.87 | J30: 171202.08 | L30: ='6. Historical Wholesale'!L30 -> 162032 | M30: 2.02 | N30: 327304.64 | P30: 498506.72
B31: August | D31: ='6. Historical Wholesale'!D31 -> 184627 | E31: 3.66 | F31: 675734.82 | H31: ='6. Historical Wholesale'!H31 -> 185662 | I31: 0.87 | J31: 161525.94 | L31: ='6. Historical Wholesale'!L31 -> 147396 | M31: 2.02 | N31: 297739.92 | P31: 459265.86
B32: September | D32: ='6. Historical Wholesale'!D32 -> 187657 | E32: 3.66 | F32: 686824.62 | H32: ='6. Historical Wholesale'!H32 -> 194446 | I32: 0.87 | J32: 169168.02 | L32: ='6. Historical Wholesale'!L32 -> 151845 | M32: 2.02 | N32: 306726.9 | P32: 475894.92
B33: October | D33: ='6. Historical Wholesale'!D33 -> 127653 | E33: 3.66 | F33: 467209.98 | H33: ='6. Historical Wholesale'!H33 -> 140155 | I33: 0.87 | J33: 121934.85 | L33: ='6. Historical Wholesale'!L33 -> 113977 | M33: 2.02 | N33: 230233.54 | P33: 352168.39
B34: November | D34: ='6. Historical Wholesale'!D34 -> 135915 | E34: 3.66 | F34: 497448.9 | H34: ='6. Historical Wholesale'!H34 -> 147820 | I34: 0.87 | J34: 128603.4 | L34: ='6. Historical Wholesale'!L34 -> 115583 | M34: 2.02 | N34: 233477.66 | P34: 362081.06
B35: December | D35: ='6. Historical Wholesale'!D35 -> 138071 | E35: 3.66 | F35: 505339.86 | H35: ='6. Historical Wholesale'!H35 -> 143100 | I35: 0.87 | J35: 124497 | L35: ='6. Historical Wholesale'!L35 -> 113992 | M35: 2.02 | N35: 230263.84 | P35: 354760.84
B37: Total | D37: =SUM(D24:D35) -> 1891755 | E37: =IF(D37<>0,F37/D37,0) -> 3.66 | F37: =SUM(F24:F35) -> 6923823.3 | H37: =SUM(H24:H35) -> 2000335.64 | I37: =IF(H37<>0,J37/H37,0) -> 0.87 | J37: =SUM(J24:J35) -> 1740292.006 | L37: =SUM(L24:L35) -> 1602145.59 | M37: =IF(L37<>0,N37/L37,0) -> 2.02 | N37: =SUM(N24:N35) -> 3236334.092 | P37: =SUM(P24:P35) -> 4976626.098
B39: Hydro One | D39: Network | H39: Line Connection | L39: Transformation Connection | P39: Total Line
B41: Month | D41: Units Billed | E41: Rate | F41: Amount | H41: Units Billed | I41: Rate | J41: Amount | L41: Units Billed | M41: Rate | N41: Amount | P41: Amount
B43: January | D43: ='6. Historical Wholesale'!D43 -> 0 | E43: ='5. UTRs and Sub-Transmission'!G35+'5. UTRs and Sub-Transmission'!G79 -> 0 | F43: =D43*E43 -> 0 | H43: ='6. Historical Wholesale'!H43 -> 0 | I43: ='5. UTRs and Sub-Transmission'!G37+'5. UTRs and Sub-Transmission'!G81 -> 0 | J43: =H43*I43 -> 0 | L43: ='6. Historical Wholesale'!L43 -> 0 | M43: ='5. UTRs and Sub-Transmission'!G39 -> 0 | N43: =L43*M43 -> 0 | P43: =J43+N43 -> 0
B44: February | D44: ='6. Historical Wholesale'!D44 -> 0 | E44: =E43 -> 0 | F44: =D44*E44 -> 0 | H44: ='6. Historical Wholesale'!H44 -> 0 | I44: =I43 -> 0 | J44: =H44*I44 -> 0 | L44: ='6. Historical Wholesale'!L44 -> 0 | M44: =M43 -> 0 | N44: =L44*M44 -> 0 | P44: 0
B45: March | D45: ='6. Historical Wholesale'!D45 -> 0 | E45: =E44 -> 0 | F45: 0 | H45: ='6. Historical Wholesale'!H45 -> 0 | I45: =I44 -> 0 | J45: 0 | L45: ='6. Historical Wholesale'!L45 -> 0 | M45: =M44 -> 0 | N45: 0 | P45: 0
B46: April | D46: ='6. Historical Wholesale'!D46 -> 0 | E46: 0 | F46: 0 | H46: ='6. Historical Wholesale'!H46 -> 0 | I46: 0 | J46: 0 | L46: ='6. Historical Wholesale'!L46 -> 0 | M46: =M45 -> 0 | N46: 0 | P46: 0
B47: May | D47: ='6. Historical Wholesale'!D47 -> 0 | E47: 0 | F47: 0 | H47: ='6. Historical Wholesale'!H47 -> 0 | I47: 0 | J47: 0 | L47: ='6. Historical Wholesale'!L47 -> 0 | M47: 0 | N47: 0 | P47: 0
B48: June | D48: ='6. Historical Wholesale'!D48 -> 0 | E48: 0 | F48: 0 | H48: ='6. Historical Wholesale'!H48 -> 0 | I48: 0 | J48: 0 | L48: ='6. Historical Wholesale'!L48 -> 0 | M48: 0 | N48: 0 | P48: 0
B49: July | D49: ='6. Historical Wholesale'!D49 -> 0 | E49: 0 | F49: 0 | H49: ='6. Historical Wholesale'!H49 -> 0 | I49: 0 | J49: 0 | L49: ='6. Historical Wholesale'!L49 -> 0 | M49: 0 | N49: 0 | P49: 0
B50: August | D50: ='6. Historical Wholesale'!D50 -> 0 | E50: 0 | F50: 0 | H50: ='6. Historical Wholesale'!H50 -> 0 | I50: 0 | J50: 0 | L50: ='6. Historical Wholesale'!L50 -> 0 | M50: 0 | N50: 0 | P50: 0
B51: September | D51: ='6. Historical Wholesale'!D51 -> 0 | E51: 0 | F51: 0 | H51: ='6. Historical Wholesale'!H51 -> 0 | I51: 0 | J51: 0 | L51: ='6. Historical Wholesale'!L51 -> 0 | M51: 0 | N51: 0 | P51: 0
B52: October | D52: ='6. Historical Wholesale'!D52 -> 0 | E52: 0 | F52: 0 | H52: ='6. Historical Wholesale'!H52 -> 0 | I52: 0 | J52: 0 | L52: ='6. Historical Wholesale'!L52 -> 0 | M52: 0 | N52: 0 | P52: 0
B53: November | D53: ='6. Historical Wholesale'!D53 -> 0 | E53: 0 | F53: 0 | H53: ='6. Historical Wholesale'!H53 -> 0 | I53: 0 | J53: 0 | L53: ='6. Historical Wholesale'!L53 -> 0 | M53: 0 | N53: 0 | P53: 0
B54: December | D54: ='6. Historical Wholesale'!D54 -> 0 | E54: 0 | F54: 0 | H54: ='6. Historical Wholesale'!H54 -> 0 | I54: 0 | J54: 0 | L54: ='6. Historical Wholesale'!L54 -> 0 | M54: 0 | N54: 0 | P54: 0
B56: Total | D56: =SUM(D43:D54) -> 0 | E56: =IF(D56<>0,F56/D56,0) -> 0 | F56: =SUM(F43:F54) -> 0 | H56: =SUM(H43:H54) -> 0 | I56: =IF(H56<>0,J56/H56,0) -> 0 | J56: =SUM(J43:J54) -> 0 | L56: =SUM(L43:L54) -> 0 | M56: =IF(L56<>0,N56/L56,0) -> 0 | N56: =SUM(N43:N54) -> 0 | P56: =SUM(P43:P54) -> 0
B58: ='6. Historical Wholesale'!B58 -> Add Extra Host Here (I) | D58: Network | H58: Line Connection | L58: Transformation Connection | P58: Total Line
B60: Month | D60: Units Billed | E60: Rate | F60: Amount | H60: Units Billed | I60: Rate | J60: Amount | L60: Units Billed | M60: Rate | N60: Amount | P60: Amount
B62: January | D62: ='6. Historical Wholesale'!D62 -> 14.26 | E62: ='5. UTRs and Sub-Transmission'!G50 -> 1.8553 | F62: =D62*E62 -> 26.456578 | H62: ='6. Historical Wholesale'!H62 -> 15.54 | I62: ='5. UTRs and Sub-Transmission'!G52 -> 0.7541 | J62: =H62*I62 -> 11.718714 | L62: ='6. Historical Wholesale'!L62 -> 0 | M62: ='5. UTRs and Sub-Transmission'!G54 -> 0 | N62: =L62*M62 -> 0 | P62: =J62+N62 -> 11.718714
B63: February | D63: ='6. Historical Wholesale'!D63 -> 15.22 | E63: =E62 -> 1.8553 | F63: =D63*E63 -> 28.237666 | H63: ='6. Historical Wholesale'!H63 -> 16.29 | I63: =I62 -> 0.7541 | J63: =H63*I63 -> 12.284289 | L63: ='6. Historical Wholesale'!L63 -> 0 | M63: =M62 -> 0 | N63: =L63*M63 -> 0 | P63: 12.284289
B64: March | D64: ='6. Historical Wholesale'!D64 -> 15.15 | E64: =E63 -> 1.8553 | F64: 28.107795 | H64: ='6. Historical Wholesale'!H64 -> 15.29 | I64: =I63 -> 0.7541 | J64: 11.530189 | L64: ='6. Historical Wholesale'!L64 -> 0 | M64: =M63 -> 0 | N64: 0 | P64: 11.530189
B65: April | D65: ='6. Historical Wholesale'!D65 -> 14.54 | E65: 1.8553 | F65: 26.976062 | H65: ='6. Historical Wholesale'!H65 -> 18.18 | I65: 0.7541 | J65: 13.709538 | L65: ='6. Historical Wholesale'!L65 -> 0 | M65: =M64 -> 0 | N65: 0 | P65: 13.709538
B66: May | D66: ='6. Historical Wholesale'!D66 -> 79.75 | E66: 1.8553 | F66: 147.960175 | H66: ='6. Historical Wholesale'!H66 -> 108.5 | I66: 0.7541 | J66: 81.81985 | L66: ='6. Historical Wholesale'!L66 -> 0 | M66: 0 | N66: 0 | P66: 81.81985
B67: June | D67: ='6. Historical Wholesale'!D67 -> 122.17 | E67: 1.8553 | F67: 226.662001 | H67: ='6. Historical Wholesale'!H67 -> 140.74 | I67: 0.7541 | J67: 106.132034 | L67: ='6. Historical Wholesale'!L67 -> 0 | M67: 0 | N67: 0 | P67: 106.132034
B68: July | D68: ='6. Historical Wholesale'!D68 -> 187.11 | E68: 1.8553 | F68: 347.145183 | H68: ='6. Historical Wholesale'!H68 -> 223.98 | I68: 0.7541 | J68: 168.903318 | L68: ='6. Historical Wholesale'!L68 -> 0 | M68: 0 | N68: 0 | P68: 168.903318
B69: August | D69: ='6. Historical Wholesale'!D69 -> 173.49 | E69: 1.8553 | F69: 321.875997 | H69: ='6. Historical Wholesale'!H69 -> 214.83 | I69: 0.7541 | J69: 162.003303 | L69: ='6. Historical Wholesale'!L69 -> 0 | M69: 0 | N69: 0 | P69: 162.003303
B70: September | D70: ='6. Historical Wholesale'!D70 -> 174 | E70: 1.8553 | F70: 322.8222 | H70: ='6. Historical Wholesale'!H70 -> 251.34 | I70: 0.7541 | J70: 189.535494 | L70: ='6. Historical Wholesale'!L70 -> 0 | M70: 0 | N70: 0 | P70: 189.535494
B71: October | D71: ='6. Historical Wholesale'!D71 -> 81.73 | E71: 1.8553 | F71: 151.633669 | H71: ='6. Historical Wholesale'!H71 -> 103.71 | I71: 0.7541 | J71: 78.207711 | L71: ='6. Historical Wholesale'!L71 -> 0 | M71: 0 | N71: 0 | P71: 78.207711
B72: November | D72: ='6. Historical Wholesale'!D72 -> 13.73 | E72: 1.8553 | F72: 25.473269 | H72: ='6. Historical Wholesale'!H72 -> 15.08 | I72: 0.7541 | J72: 11.371828 | L72: ='6. Historical Wholesale'!L72 -> 0 | M72: 0 | N72: 0 | P72: 11.371828
B73: December | D73: ='6. Historical Wholesale'!D73 -> 14.75 | E73: 1.8553 | F73: 27.365675 | H73: ='6. Historical Wholesale'!H73 -> 15.39 | I73: 0.7541 | J73: 11.605599 | L73: ='6. Historical Wholesale'!L73 -> 0 | M73: 0 | N73: 0 | P73: 11.605599
B75: Total | D75: =SUM(D62:D73) -> 905.9 | E75: =IF(D75<>0,F75/D75,0) -> 1.8553 | F75: =SUM(F62:F73) -> 1680.71627 | H75: =SUM(H62:H73) -> 1138.87 | I75: =IF(H75<>0,J75/H75,0) -> 0.7541 | J75: =SUM(J62:J73) -> 858.821867 | L75: =SUM(L62:L73) -> 0 | M75: =IF(L75<>0,N75/L75,0) -> 0 | N75: =SUM(N62:N73) -> 0 | P75: =SUM(P62:P73) -> 858.821867
B77: ='6. Historical Wholesale'!B77 -> Add Extra Host Here (II) | D77: Network | H77: Line Connection | L77: Transformation Connection | P77: Total Line
B79: Month | D79: Units Billed | E79: Rate | F79: Amount | H79: Units Billed | I79: Rate | J79: Amount | L79: Units Billed | M79: Rate | N79: Amount | P79: Amount
B81: January | D81: ='6. Historical Wholesale'!D81 -> 0 | E81: ='5. UTRs and Sub-Transmission'!G65 -> 0 | F81: =D81*E81 -> 0 | H81: ='6. Historical Wholesale'!H81 -> 0 | I81: ='5. UTRs and Sub-Transmission'!G67 -> 0 | J81: =H81*I81 -> 0 | L81: ='6. Historical Wholesale'!L81 -> 0 | M81: ='5. UTRs and Sub-Transmission'!G69 -> 0 | N81: =L81*M81 -> 0 | P81: =J81+N81 -> 0
B82: February | D82: ='6. Historical Wholesale'!D82 -> 0 | E82: =E81 -> 0 | F82: =D82*E82 -> 0 | H82: ='6. Historical Wholesale'!H82 -> 0 | I82: =I81 -> 0 | J82: =H82*I82 -> 0 | L82: ='6. Historical Wholesale'!L82 -> 0 | M82: =M81 -> 0 | N82: =L82*M82 -> 0 | P82: 0
B83: March | D83: ='6. Historical Wholesale'!D83 -> 0 | E83: =E82 -> 0 | F83: 0 | H83: ='6. Historical Wholesale'!H83 -> 0 | I83: =I82 -> 0 | J83: 0 | L83: ='6. Historical Wholesale'!L83 -> 0 | M83: =M82 -> 0 | N83: 0 | P83: 0
B84: April | D84: ='6. Historical Wholesale'!D84 -> 0 | E84: 0 | F84: 0 | H84: ='6. Historical Wholesale'!H84 -> 0 | I84: 0 | J84: 0 | L84: ='6. Historical Wholesale'!L84 -> 0 | M84: =M83 -> 0 | N84: 0 | P84: 0
B85: May | D85: ='6. Historical Wholesale'!D85 -> 0 | E85: 0 | F85: 0 | H85: ='6. Historical Wholesale'!H85 -> 0 | I85: 0 | J85: 0 | L85: ='6. Historical Wholesale'!L85 -> 0 | M85: 0 | N85: 0 | P85: 0
B86: June | D86: ='6. Historical Wholesale'!D86 -> 0 | E86: 0 | F86: 0 | H86: ='6. Historical Wholesale'!H86 -> 0 | I86: 0 | J86: 0 | L86: ='6. Historical Wholesale'!L86 -> 0 | M86: 0 | N86: 0 | P86: 0
B87: July | D87: ='6. Historical Wholesale'!D87 -> 0 | E87: 0 | F87: 0 | H87: ='6. Historical Wholesale'!H87 -> 0 | I87: 0 | J87: 0 | L87: ='6. Historical Wholesale'!L87 -> 0 | M87: 0 | N87: 0 | P87: 0
B88: August | D88: ='6. Historical Wholesale'!D88 -> 0 | E88: 0 | F88: 0 | H88: ='6. Historical Wholesale'!H88 -> 0 | I88: 0 | J88: 0 | L88: ='6. Historical Wholesale'!L88 -> 0 | M88: 0 | N88: 0 | P88: 0
B89: September | D89: ='6. Historical Wholesale'!D89 -> 0 | E89: 0 | F89: 0 | H89: ='6. Historical Wholesale'!H89 -> 0 | I89: 0 | J89: 0 | L89: ='6. Historical Wholesale'!L89 -> 0 | M89: 0 | N89: 0 | P89: 0
B90: October | D90: ='6. Historical Wholesale'!D90 -> 0 | E90: 0 | F90: 0 | H90: ='6. Historical Wholesale'!H90 -> 0 | I90: 0 | J90: 0 | L90: ='6. Historical Wholesale'!L90 -> 0 | M90: 0 | N90: 0 | P90: 0
B91: November | D91: ='6. Historical Wholesale'!D91 -> 0 | E91: 0 | F91: 0 | H91: ='6. Historical Wholesale'!H91 -> 0 | I91: 0 | J91: 0 | L91: ='6. Historical Wholesale'!L91 -> 0 | M91: 0 | N91: 0 | P91: 0
B92: December | D92: ='6. Historical Wholesale'!D92 -> 0 | E92: 0 | F92: 0 | H92: ='6. Historical Wholesale'!H92 -> 0 | I92: 0 | J92: 0 | L92: ='6. Historical Wholesale'!L92 -> 0 | M92: 0 | N92: 0 | P92: 0
B94: Total | D94: =SUM(D81:D92) -> 0 | E94: =IF(D94<>0,F94/D94,0) -> 0 | F94: =SUM(F81:F92) -> 0 | H94: =SUM(H81:H92) -> 0 | I94: =IF(H94<>0,J94/H94,0) -> 0 | J94: =SUM(J81:J92) -> 0 | L94: =SUM(L81:L92) -> 0 | M94: =IF(L94<>0,N94/L94,0) -> 0 | N94: =SUM(N81:N92) -> 0 | P94: =SUM(P81:P92) -> 0
B96: Total | D96: Network | H96: Line Connection | L96: Transformation Connection | P96: Total Line
B98: Month | D98: Units Billed | E98: Rate | F98: Amount | H98: Units Billed | I98: Rate | J98: Amount | L98: Units Billed | M98: Rate | N98: Amount | P98: Amount
B100: January | D100: =D24+D43+D62+D81 -> 166898.26 | E100: =IF(D100<>0,F100/D100,0) -> 3.659845804 | F100: =F24+F43+F62+F81 -> 610821.8966 | H100: =H24+H43+H62+H81 -> 175013.54 | I100: =IF(H100<>0,J100/H100,0) -> 0.8699897089 | J100: =J24+J43+J62+J81 -> 152259.9787 | L100: =L24+L43+L62+L81 -> 139534 | M100: =IF(L100<>0,N100/L100,0) -> 2.02 | N100: =N24+N43+N62+N81 -> 281858.68 | P100: =J100+N100 -> 434118.6587
B101: February | D101: =D25+D44+D63+D82 -> 154018.22 | E101: 3.65982166 | F101: =F25+F44+F63+F82 -> 563679.2177 | H101: =H25+H44+H63+H82 -> 159090.29 | I101: 0.8699881325 | J101: =J25+J44+J63+J82 -> 138406.6643 | L101: =L25+L44+L63+L82 -> 122605 | M101: 2.02 | N101: =N25+N44+N63+N82 -> 247662.1 | P101: 386068.7643
B102: March | D102: 146644.15 | E102: 3.659813554 | F102: 536690.2478 | H102: 150068.29 | I102: 0.8699881913 | J102: 130557.6402 | L102: 122842 | M102: 2.02 | N102: 248140.84 | P102: 378698.4802
B103: April | D103: 135715.54 | E103: 3.659806652 | F103: 496692.6361 | H103: 165393.8195 | I103: 0.8699872603 | J103: 143890.5159 | L103: 134927.59 | M103: 2.02 | N103: 272553.7318 | P103: 416444.2477
B104: May | D104: 157284.75 | E104: 3.659084941 | F104: 575518.2602 | H104: 169419.5 | I104: 0.8699257751 | J104: 147382.3899 | L104: 131309 | M104: 2.02 | N104: 265244.18 | P104: 412626.5698
B105: June | D105: 166864.17 | E105: 3.658678685 | F105: 610502.382 | H105: 173697.74 | I105: 0.8699060911 | J105: 151100.722 | L105: 146103 | M105: 2.02 | N105: 295128.06 | P105: 446228.782
B106: July | D106: 190855.11 | E106: 3.658230713 | F106: 698192.0252 | H106: 197007.98 | I106: 0.8698682323 | J106: 171370.9833 | L106: 162032 | M106: 2.02 | N106: 327304.64 | P106: 498675.6233
B107: August | D107: 184800.49 | E107: 3.658305754 | F107: 676056.696 | H107: 185876.83 | I107: 0.8698660468 | J107: 161687.9433 | L107: 147396 | M107: 2.02 | N107: 297739.92 | P107: 459427.8633
B108: September | D108: 187831 | E108: 3.65832819 | F108: 687147.4422 | H108: 194697.34 | I108: 0.8698503816 | J108: 169357.5555 | L108: 151845 | M108: 2.02 | N108: 306726.9 | P108: 476084.4555
B109: October | D109: 127734.73 | E109: 3.658845278 | F109: 467361.6137 | H109: 140258.71 | I109: 0.8699143013 | J109: 122013.0577 | L109: 113977 | M109: 2.02 | N109: 230233.54 | P109: 352246.5977
B110: November | D110: 135928.73 | E110: 3.659817709 | F110: 497474.3733 | H110: 147835.08 | I110: 0.8699881776 | J110: 128614.7718 | L110: 115583 | M110: 2.02 | N110: 233477.66 | P110: 362092.4318
B111: December | D111: 138085.75 | E111: 3.659807226 | F111: 505367.2257 | H111: 143115.39 | I111: 0.8699875366 | J111: 124508.6056 | L111: 113992 | M111: 2.02 | N111: 230263.84 | P111: 354772.4456
B113: Total | D113: =SUM(D100:D111) -> 1892660.9 | E113: =IF(D113<>0,F113/D113,0) -> 3.659136201 | F113: =SUM(F100:F111) -> 6925504.016 | H113: =SUM(H100:H111) -> 2001474.51 | I113: =IF(H113<>0,J113/H113,0) -> 0.8699340511 | J113: =SUM(J100:J111) -> 1741150.828 | L113: =SUM(L100:L111) -> 1602145.59 | M113: =IF(L113<>0,N113/L113,0) -> 2.02 | N113: =SUM(N100:N111) -> 3236334.092 | P113: =SUM(P100:P111) -> 4977484.92
N115: Low Voltage Switchgear Credit (if applicable) | P115: ='5. UTRs and Sub-Transmission'!G95 -> 0
N117: Total including deduction for Low Voltage Switchgear Credit | P117: =P113+P115 -> 4977484.92

Sheet 8. Forecast Wholesale
B13: The purpose of this sheet is to calculate the expected billing when forecasted 2016 2017 Uniform Transmission Rates are applied against historical 2014 2015 transmission units.
B20: IESO | D20: Network | H20: Line Connection | L20: Transformation Connection | P20: Total Line
B22: Month | D22: Units Billed | E22: Rate | F22: Amount | H22: Units Billed | I22: Rate | J22: Amount | L22: Units Billed | M22: Rate | N22: Amount | P22: Amount
B24: January | D24: ='6. Historical Wholesale'!D24 -> 166884 | E24: ='5. UTRs and Sub-Transmission'!I22 -> 3.66 | F24: =D24*E24 -> 610795.44 | H24: ='6. Historical Wholesale'!H24 -> 174998 | I24: ='5. UTRs and Sub-Transmission'!I24 -> 0.87 | J24: =H24*I24 -> 152248.26 | L24: ='6. Historical Wholesale'!L24 -> 139534 | M24: ='5. UTRs and Sub-Transmission'!I26 -> 2.02 | N24: =L24*M24 -> 281858.68 | P24: =J24+N24 -> 434106.94
B25: February | D25: ='6. Historical Wholesale'!D25 -> 154003 | E25: =E24 -> 3.66 | F25: =D25*E25 -> 563650.98 | H25: ='6. Historical Wholesale'!H25 -> 159074 | I25: =I24 -> 0.87 | J25: 138394.38 | L25: ='6. Historical Wholesale'!L25 -> 122605 | M25: =M24 -> 2.02 | N25: 247662.1 | P25: 386056.48
B26: March | D26: ='6. Historical Wholesale'!D26 -> 146629 | E26: 3.66 | F26: 536662.14 | H26: ='6. Historical Wholesale'!H26 -> 150053 | I26: 0.87 | J26: 130546.11 | L26: ='6. Historical Wholesale'!L26 -> 122842 | M26: 2.02 | N26: 248140.84 | P26: 378686.95
B27: April | D27: ='6. Historical Wholesale'!D27 -> 135701 | E27: 3.66 | F27: 496665.66 | H27: ='6. Historical Wholesale'!H27 -> 165375.6395 | I27: 0.87 | J27: 143876.8064 | L27: ='6. Historical Wholesale'!L27 -> 134927.59 | M27: 2.02 | N27: 272553.7318 | P27: 416430.5382
B28: May | D28: ='6. Historical Wholesale'!D28 -> 157205 | E28: 3.66 | F28: 575370.3 | H28: ='6. Historical Wholesale'!H28 -> 169311 | I28: 0.87 | J28: 147300.57 | L28: ='6. Historical Wholesale'!L28 -> 131309 | M28: 2.02 | N28: 265244.18 | P28: 412544.75
B29: June | D29: ='6. Historical Wholesale'!D29 -> 166742 | E29: 3.66 | F29: 610275.72 | H29: ='6. Historical Wholesale'!H29 -> 173557 | I29: 0.87 | J29: 150994.59 | L29: ='6. Historical Wholesale'!L29 -> 146103 | M29: 2.02 | N29: 295128.06 | P29: 446122.65
B30: July | D30: ='6. Historical Wholesale'!D30 -> 190668 | E30: 3.66 | F30: 697844.88 | H30: ='6. Historical Wholesale'!H30 -> 196784 | I30: 0.87 | J30: 171202.08 | L30: ='6. Historical Wholesale'!L30 -> 162032 | M30: 2.02 | N30: 327304.64 | P30: 498506.72
B31: August | D31: ='6. Historical Wholesale'!D31 -> 184627 | E31: 3.66 | F31: 675734.82 | H31: ='6. Historical Wholesale'!H31 -> 185662 | I31: 0.87 | J31: 161525.94 | L31: ='6. Historical Wholesale'!L31 -> 147396 | M31: 2.02 | N31: 297739.92 | P31: 459265.86
B32: September | D32: ='6. Historical Wholesale'!D32 -> 187657 | E32: 3.66 | F32: 686824.62 | H32: ='6. Historical Wholesale'!H32 -> 194446 | I32: 0.87 | J32: 169168.02 | L32: ='6. Historical Wholesale'!L32 -> 151845 | M32: 2.02 | N32: 306726.9 | P32: 475894.92
B33: October | D33: ='6. Historical Wholesale'!D33 -> 127653 | E33: 3.66 | F33: 467209.98 | H33: ='6. Historical Wholesale'!H33 -> 140155 | I33: 0.87 | J33: 121934.85 | L33: ='6. Historical Wholesale'!L33 -> 113977 | M33: 2.02 | N33: 230233.54 | P33: 352168.39
B34: November | D34: ='6. Historical Wholesale'!D34 -> 135915 | E34: 3.66 | F34: 497448.9 | H34: ='6. Historical Wholesale'!H34 -> 147820 | I34: 0.87 | J34: 128603.4 | L34: ='6. Historical Wholesale'!L34 -> 115583 | M34: 2.02 | N34: 233477.66 | P34: 362081.06
B35: December | D35: ='6. Historical Wholesale'!D35 -> 138071 | E35: 3.66 | F35: 505339.86 | H35: ='6. Historical Wholesale'!H35 -> 143100 | I35: 0.87 | J35: 124497 | L35: ='6. Historical Wholesale'!L35 -> 113992 | M35: 2.02 | N35: 230263.84 | P35: 354760.84
B37: Total | D37: =SUM(D24:D35) -> 1891755 | E37: =IF(D37<>0,F37/D37,0) -> 3.66 | F37: =SUM(F24:F35) -> 6923823.3 | H37: =SUM(H24:H35) -> 2000335.64 | I37: =IF(H37<>0,J37/H37,0) -> 0.87 | J37: =SUM(J24:J35) -> 1740292.006 | L37: =SUM(L24:L35) -> 1602145.59 | M37: =IF(L37<>0,N37/L37,0) -> 2.02 | N37: =SUM(N24:N35) -> 3236334.092 | P37: =SUM(P24:P35) -> 4976626.098
B39: Hydro One | D39: Network | H39: Line Connection | L39: Transformation Connection | P39: Total Line
B41: Month | D41: Units Billed | E41: Rate | F41: Amount | H41: Units Billed | I41: Rate | J41: Amount | L41: Units Billed | M41: Rate | N41: Amount | P41: Amount
B43: January | D43: ='6. Historical Wholesale'!D43 -> 0 | E43: ='5. UTRs and Sub-Transmission'!I35+'5. UTRs and Sub-Transmission'!I79 -> 0 | F43: =D43*E43 -> 0 | H43: ='6. Historical Wholesale'!H43 -> 0 | I43: ='5. UTRs and Sub-Transmission'!I37+'5. UTRs and Sub-Transmission'!I81 -> 0 | J43: =H43*I43 -> 0 | L43: ='6. Historical Wholesale'!L43 -> 0 | M43: ='5. UTRs and Sub-Transmission'!I39 -> 0 | N43: =L43*M43 -> 0 | P43: =J43+N43 -> 0
B44: February | D44: ='6. Historical Wholesale'!D44 -> 0 | E44: =E43 -> 0 | F44: 0 | H44: ='6. Historical Wholesale'!H44 -> 0 | I44: =I43 -> 0 | J44: 0 | L44: ='6. Historical Wholesale'!L44 -> 0 | M44: =M43 -> 0 | N44: 0 | P44: 0
B45: March | D45: ='6. Historical Wholesale'!D45 -> 0 | E45: 0 | F45: 0 | H45: ='6. Historical Wholesale'!H45 -> 0 | I45: 0 | J45: 0 | L45: ='6. Historical Wholesale'!L45 -> 0 | M45: 0 | N45: 0 | P45: 0
B46: April | D46: ='6. Historical Wholesale'!D46 -> 0 | E46: 0 | F46: 0 | H46: ='6. Historical Wholesale'!H46 -> 0 | I46: 0 | J46: 0 | L46: ='6. Historical Wholesale'!L46 -> 0 | M46: 0 | N46: 0 | P46: 0
B47: May | D47: ='6. Historical Wholesale'!D47 -> 0 | E47: 0 | F47: 0 | H47: ='6. Historical Wholesale'!H47 -> 0 | I47: 0 | J47: 0 | L47: ='6. Historical Wholesale'!L47 -> 0 | M47: 0 | N47: 0 | P47: 0
B48: June | D48: ='6. Historical Wholesale'!D48 -> 0 | E48: 0 | F48: 0 | H48: ='6. Historical Wholesale'!H48 -> 0 | I48: 0 | J48: 0 | L48: ='6. Historical Wholesale'!L48 -> 0 | M48: 0 | N48: 0 | P48: 0
B49: July | D49: ='6. Historical Wholesale'!D49 -> 0 | E49: 0 | F49: 0 | H49: ='6. Historical Wholesale'!H49 -> 0 | I49: 0 | J49: 0 | L49: ='6. Historical Wholesale'!L49 -> 0 | M49: 0 | N49: 0 | P49: 0
B50: August | D50: ='6. Historical Wholesale'!D50 -> 0 | E50: 0 | F50: 0 | H50: ='6. Historical Wholesale'!H50 -> 0 | I50: 0 | J50: 0 | L50: ='6. Historical Wholesale'!L50 -> 0 | M50: 0 | N50: 0 | P50: 0
B51: September | D51: ='6. Historical Wholesale'!D51 -> 0 | E51: 0 | F51: 0 | H51: ='6. Historical Wholesale'!H51 -> 0 | I51: 0 | J51: 0 | L51: ='6. Historical Wholesale'!L51 -> 0 | M51: 0 | N51: 0 | P51: 0
B52: October | D52: ='6. Historical Wholesale'!D52 -> 0 | E52: 0 | F52: 0 | H52: ='6. Historical Wholesale'!H52 -> 0 | I52: 0 | J52: 0 | L52: ='6. Historical Wholesale'!L52 -> 0 | M52: 0 | N52: 0 | P52: 0
B53: November | D53: ='6. Historical Wholesale'!D53 -> 0 | E53: 0 | F53: 0 | H53: ='6. Historical Wholesale'!H53 -> 0 | I53: 0 | J53: 0 | L53: ='6. Historical Wholesale'!L53 -> 0 | M53: 0 | N53: 0 | P53: 0
B54: December | D54: ='6. Historical Wholesale'!D54 -> 0 | E54: 0 | F54: 0 | H54: ='6. Historical Wholesale'!H54 -> 0 | I54: 0 | J54: 0 | L54: ='6. Historical Wholesale'!L54 -> 0 | M54: 0 | N54: 0 | P54: 0
B56: Total | D56: =SUM(D43:D54) -> 0 | E56: =IF(D56<>0,F56/D56,0) -> 0 | F56: =SUM(F43:F54) -> 0 | H56: =SUM(H43:H54) -> 0 | I56: =IF(H56<>0,J56/H56,0) -> 0 | J56: =SUM(J43:J54) -> 0 | L56: =SUM(L43:L54) -> 0 | M56: =IF(L56<>0,N56/L56,0) -> 0 | N56: =SUM(N43:N54) -> 0 | P56: =SUM(P43:P54) -> 0
B58: ='6. Historical Wholesale'!B58 -> Add Extra Host Here (I) | D58: Network | H58: Line Connection | L58: Transformation Connection | P58: Total Line
B60: Month | D60: Units Billed | E60: Rate | F60: Amount | H60: Units Billed | I60: Rate | J60: Amount | L60: Units Billed | M60: Rate | N60: Amount | P60: Amount
B62: January | D62: ='6. Historical Wholesale'!D62 -> 14.26 | E62: ='5. UTRs and Sub-Transmission'!I50 -> 2.3678 | F62: =D62*E62 -> 33.764828 | H62: ='6. Historical Wholesale'!H62 -> 15.54 | I62: ='5. UTRs and Sub-Transmission'!I52 -> 1.218 | J62: =H62*I62 -> 18.92772 | L62: ='6. Historical Wholesale'!L62 -> 0 | M62: ='5. UTRs and Sub-Transmission'!I54 -> 0 | N62: =L62*M62 -> 0 | P62: =J62+N62 -> 18.92772
B63: February | D63: ='6. Historical Wholesale'!D63 -> 15.22 | E63: =E62 -> 2.3678 | F63: 36.037916 | H63: ='6. Historical Wholesale'!H63 -> 16.29 | I63: =I62 -> 1.218 | J63: 19.84122 | L63: ='6. Historical Wholesale'!L63 -> 0 | M63: =M62 -> 0 | N63: 0 | P63: 19.84122
B64: March | D64: ='6. Historical Wholesale'!D64 -> 15.15 | E64: 2.3678 | F64: 35.87217 | H64: ='6. Historical Wholesale'!H64 -> 15.29 | I64: 1.218 | J64: 18.62322 | L64: ='6. Historical Wholesale'!L64 -> 0 | M64: 0 | N64: 0 | P64: 18.62322
B65: April | D65: ='6. Historical Wholesale'!D65 -> 14.54 | E65: 2.3678 | F65: 34.427812 | H65: ='6. Historical Wholesale'!H65 -> 18.18 | I65: 1.218 | J65: 22.14324 | L65: ='6. Historical Wholesale'!L65 -> 0 | M65: 0 | N65: 0 | P65: 22.14324
B66: May | D66: ='6. Historical Wholesale'!D66 -> 79.75 | E66: 2.3678 | F66: 188.83205 | H66: ='6. Historical Wholesale'!H66 -> 108.5 | I66: 1.218 | J66: 132.153 | L66: ='6. Historical Wholesale'!L66 -> 0 | M66: 0 | N66: 0 | P66: 132.153
B67: June | D67: ='6. Historical Wholesale'!D67 -> 122.17 | E67: 2.3678 | F67: 289.274126 | H67: ='6. Historical Wholesale'!H67 -> 140.74 | I67: 1.218 | J67: 171.42132 | L67: ='6. Historical Wholesale'!L67 -> 0 | M67: 0 | N67: 0 | P67: 171.42132
B68: July | D68: ='6. Historical Wholesale'!D68 -> 187.11 | E68: 2.3678 | F68: 443.039058 | H68: ='6. Historical Wholesale'!H68 -> 223.98 | I68: 1.218 | J68: 272.80764 | L68: ='6. Historical Wholesale'!L68 -> 0 | M68: 0 | N68: 0 | P68: 272.80764
B69: August | D69: ='6. Historical Wholesale'!D69 -> 173.49 | E69: 2.3678 | F69: 410.789622 | H69: ='6. Historical Wholesale'!H69 -> 214.83 | I69: 1.218 | J69: 261.66294 | L69: ='6. Historical Wholesale'!L69 -> 0 | M69: 0 | N69: 0 | P69: 261.66294
B70: September | D70: ='6. Historical Wholesale'!D70 -> 174 | E70: 2.3678 | F70: 411.9972 | H70: ='6. Historical Wholesale'!H70 -> 251.34 | I70: 1.218 | J70: 306.13212 | L70: ='6. Historical Wholesale'!L70 -> 0 | M70: 0 | N70: 0 | P70: 306.13212
B71: October | D71: ='6. Historical Wholesale'!D71 -> 81.73 | E71: 2.3678 | F71: 193.520294 | H71: ='6. Historical Wholesale'!H71 -> 103.71 | I71: 1.218 | J71: 126.31878 | L71: ='6. Historical Wholesale'!L71 -> 0 | M71: 0 | N71: 0 | P71: 126.31878
B72: November | D72: ='6. Historical Wholesale'!D72 -> 13.73 | E72: 2.3678 | F72: 32.509894 | H72: ='6. Historical Wholesale'!H72 -> 15.08 | I72: 1.218 | J72: 18.36744 | L72: ='6. Historical Wholesale'!L72 -> 0 | M72: 0 | N72: 0 | P72: 18.36744
B73: December | D73: ='6. Historical Wholesale'!D73 -> 14.75 | E73: 2.3678 | F73: 34.92505 | H73: ='6. Historical Wholesale'!H73 -> 15.39 | I73: 1.218 | J73: 18.74502 | L73: ='6. Historical Wholesale'!L73 -> 0 | M73: 0 | N73: 0 | P73: 18.74502
B75: Total | D75: =SUM(D62:D73) -> 905.9 | E75: =IF(D75<>0,F75/D75,0) -> 2.3678 | F75: =SUM(F62:F73) -> 2144.99002 | H75: =SUM(H62:H73) -> 1138.87 | I75: =IF(H75<>0,J75/H75,0) -> 1.218 | J75: =SUM(J62:J73) -> 1387.14366 | L75: =SUM(L62:L73) -> 0 | M75: =IF(L75<>0,N75/L75,0) -> 0 | N75: =SUM(N62:N73) -> 0 | P75: =SUM(P62:P73) -> 1387.14366
B77: ='6. Historical Wholesale'!B77 -> Add Extra Host Here (II) | D77: Network | H77: Line Connection | L77: Transformation Connection | P77: Total Line
B79: Month | D79: Units Billed | E79: Rate | F79: Amount | H79: Units Billed | I79: Rate | J79: Amount | L79: Units Billed | M79: Rate | N79: Amount | P79: Amount
B81: January | D81: ='6. Historical Wholesale'!D81 -> 0 | E81: ='5. UTRs and Sub-Transmission'!I65 -> 0 | F81: =D81*E81 -> 0 | H81: ='6. Historical Wholesale'!H81 -> 0 | I81: ='5. UTRs and Sub-Transmission'!I67 -> 0 | J81: =H81*I81 -> 0 | L81: ='6. Historical Wholesale'!L81 -> 0 | M81: ='5. UTRs and Sub-Transmission'!I69 -> 0 | N81: =L81*M81 -> 0 | P81: =J81+N81 -> 0
B82: February | D82: ='6. Historical Wholesale'!D82 -> 0 | E82: =E81 -> 0 | F82: 0 | H82: ='6. Historical Wholesale'!H82 -> 0 | I82: =I81 -> 0 | J82: 0 | L82: ='6. Historical Wholesale'!L82 -> 0 | M82: =M81 -> 0 | N82: 0 | P82: 0
B83: March | D83: ='6. Historical Wholesale'!D83 -> 0 | E83: 0 | F83: 0 | H83: ='6. Historical Wholesale'!H83 -> 0 | I83: 0 | J83: 0 | L83: ='6. Historical Wholesale'!L83 -> 0 | M83: 0 | N83: 0 | P83: 0
B84: April | D84: ='6. Historical Wholesale'!D84 -> 0 | E84: 0 | F84: 0 | H84: ='6. Historical Wholesale'!H84 -> 0 | I84: 0 | J84: 0 | L84: ='6. Historical Wholesale'!L84 -> 0 | M84: 0 | N84: 0 | P84: 0
B85: May | D85: ='6. Historical Wholesale'!D85 -> 0 | E85: 0 | F85: 0 | H85: ='6. Historical Wholesale'!H85 -> 0 | I85: 0 | J85: 0 | L85: ='6. Historical Wholesale'!L85 -> 0 | M85: 0 | N85: 0 | P85: 0
B86: June | D86: ='6. Historical Wholesale'!D86 -> 0 | E86: 0 | F86: 0 | H86: ='6. Historical Wholesale'!H86 -> 0 | I86: 0 | J86: 0 | L86: ='6. Historical Wholesale'!L86 -> 0 | M86: 0 | N86: 0 | P86: 0
B87: July | D87: ='6. Historical Wholesale'!D87 -> 0 | E87: 0 | F87: 0 | H87: ='6. Historical Wholesale'!H87 -> 0 | I87: 0 | J87: 0 | L87: ='6. Historical Wholesale'!L87 -> 0 | M87: 0 | N87: 0 | P87: 0
B88: August | D88: ='6. Historical Wholesale'!D88 -> 0 | E88: 0 | F88: 0 | H88: ='6. Historical Wholesale'!H88 -> 0 | I88: 0 | J88: 0 | L88: ='6. Historical Wholesale'!L88 -> 0 | M88: 0 | N88: 0 | P88: 0
B89: September | D89: ='6. Historical Wholesale'!D89 -> 0 | E89: 0 | F89: 0 | H89: ='6. Historical Wholesale'!H89 -> 0 | I89: 0 | J89: 0 | L89: ='6. Historical Wholesale'!L89 -> 0 | M89: 0 | N89: 0 | P89: 0
B90: October | D90: ='6. Historical Wholesale'!D90 -> 0 | E90: 0 | F90: 0 | H90: ='6. Historical Wholesale'!H90 -> 0 | I90: 0 | J90: 0 | L90: ='6. Historical Wholesale'!L90 -> 0 | M90: 0 | N90: 0 | P90: 0
B91: November | D91: ='6. Historical Wholesale'!D91 -> 0 | E91: 0 | F91: 0 | H91: ='6. Historical Wholesale'!H91 -> 0 | I91: 0 | J91: 0 | L91: ='6. Historical Wholesale'!L91 -> 0 | M91: 0 | N91: 0 | P91: 0
B92: December | D92: ='6. Historical Wholesale'!D92 -> 0 | E92: 0 | F92: 0 | H92: ='6. Historical Wholesale'!H92 -> 0 | I92: 0 | J92: 0 | L92: ='6. Historical Wholesale'!L92 -> 0 | M92: 0 | N92: 0 | P92: 0
B94: Total | D94: =SUM(D81:D92) -> 0 | E94: =IF(D94<>0,F94/D94,0) -> 0 | F94: =SUM(F81:F92) -> 0 | H94: =SUM(H81:H92) -> 0 | I94: =IF(H94<>0,J94/H94,0) -> 0 | J94: =SUM(J81:J92) -> 0 | L94: =SUM(L81:L92) -> 0 | M94: =IF(L94<>0,N94/L94,0) -> 0 | N94: =SUM(N81:N92) -> 0 | P94: =SUM(P81:P92) -> 0
B96: Total | D96: Network | H96: Line Connection | L96: Transformation Connection | P96: Total Line
B98: Month | D98: Units Billed | E98: Rate | F98: Amount | H98: Units Billed | I98: Rate | J98: Amount | L98: Units Billed | M98: Rate | N98: Amount | P98: Amount
B100: January | D100: =D24+D43+D62+D81 -> 166898.26 | E100: =IF(D100<>0,F100/D100,0) -> 3.659889593 | F100: =F24+F43+F62+F81 -> 610829.2048 | H100: =H24+H43+H62+H81 -> 175013.54 | I100: =IF(H100<>0,J100/H100,0) -> 0.8700309 | J100: =J24+J43+J62+J81 -> 152267.1877 | L100: =L24+L43+L62+L81 -> 139534 | M100: =IF(L100<>0,N100/L100,0) -> 2.02 | N100: =N24+N43+N62+N81 -> 281858.68 | P100: =J100+N100 -> 434125.8677
B101: February | D101: =D25+D44+D63+D82 -> 154018.22 | E101: 3.659872305 | F101: 563687.0179 | H101: =H25+H44+H63+H82 -> 159090.29 | I101: 0.8700356334 | J101: =J25+J44+J63+J82 -> 138414.2212 | L101: =L25+L44+L63+L82 -> 122605 | M101: 2.02 | N101: =N25+N44+N63+N82 -> 247662.1 | P101: 386076.3212
B102: March | D102: 146644.15 | E102: 3.659866501 | F102: 536698.0122 | H102: =H26+H45+H64+H83 -> 150068.29 | I102: 0.8700354567 | J102: =J26+J45+J64+J83 -> 130564.7332 | L102: =L26+L45+L64+L83 -> 122842 | M102: 2.02 | N102: =N26+N45+N64+N83 -> 248140.84 | P102: 378705.5732
B103: April | D103: 135715.54 | E103: 3.659861559 | F103: 496700.0878 | H103: =H27+H46+H65+H84 -> 165393.8195 | I103: 0.870038252 | J103: =J27+J46+J65+J84 -> 143898.9496 | L103: =L27+L46+L65+L84 -> 134927.59 | M103: 2.02 | N103: =N27+N46+N65+N84 -> 272553.7318 | P103: 416452.6814
B104: May | D104: 157284.75 | E104: 3.6593448 | F104: 575559.1321 | H104: =H28+H47+H66+H85 -> 169419.5 | I104: 0.8702228669 | J104: =J28+J47+J66+J85 -> 147432.723 | L104: =L28+L47+L66+L85 -> 131309 | M104: 2.02 | N104: =N28+N47+N66+N85 -> 265244.18 | P104: 412676.903
B105: June | D105: 166864.17 | E105: 3.659053913 | F105: 610564.9941 | H105: =H29+H48+H67+H86 -> 173697.74 | I105: 0.8702819698 | J105: =J29+J48+J67+J86 -> 151166.0113 | L105: =L29+L48+L67+L86 -> 146103 | M105: 2.02 | N105: =N29+N48+N67+N86 -> 295128.06 | P105: 446294.0713
B106: July | D106: 190855.11 | E106: 3.658733157 | F106: 698287.9191 | H106: =H30+H49+H68+H87 -> 197007.98 | I106: 0.8703956441 | J106: =J30+J49+J68+J87 -> 171474.8876 | L106: =L30+L49+L68+L87 -> 162032 | M106: 2.02 | N106: =N30+N49+N68+N87 -> 327304.64 | P106: 498779.5276
B107: August | D107: 184800.49 | E107: 3.658786888 | F107: 676145.6096 | H107: =H31+H50+H69+H88 -> 185876.83 | I107: 0.8704022063 | J107: =J31+J50+J69+J88 -> 161787.6029 | L107: =L31+L50+L69+L88 -> 147396 | M107: 2.02 | N107: =N31+N50+N69+N88 -> 297739.92 | P107: 459527.5229
B108: September | D108: 187831 | E108: 3.658802952 | F108: 687236.6172 | H108: =H32+H51+H70+H89 -> 194697.34 | I108: 0.8704492425 | J108: =J32+J51+J70+J89 -> 169474.1521 | L108: =L32+L51+L70+L89 -> 151845 | M108: 2.02 | N108: =N32+N51+N70+N89 -> 306726.9 | P108: 476201.0521
B109: October | D109: 127734.73 | E109: 3.659173197 | F109: 467403.5003 | H109: =H33+H52+H71+H90 -> 140258.71 | I109: 0.8702573179 | J109: =J33+J52+J71+J90 -> 122061.1688 | L109: =L33+L52+L71+L90 -> 113977 | M109: 2.02 | N109: =N33+N52+N71+N90 -> 230233.54 | P109: 352294.7088
B110: November | D110: 135928.73 | E110: 3.659869476 | F110: 497481.4099 | H110: =H34+H53+H72+H91 -> 147835.08 | I110: 0.8700354979 | J110: =J34+J53+J72+J91 -> 128621.7674 | L110: =L34+L53+L72+L91 -> 115583 | M110: 2.02 | N110: =N34+N53+N72+N91 -> 233477.66 | P110: 362099.4274
B111: December | D111: 138085.75 | E111: 3.65986197 | F111: 505374.7851 | H111: =H35+H54+H73+H92 -> 143115.39 | I111: 0.8700374224 | J111: =J35+J54+J73+J92 -> 124515.745 | L111: =L35+L54+L73+L92 -> 113992 | M111: 2.02 | N111: =N35+N54+N73+N92 -> 230263.84 | P111: 354779.585
B113: Total | D113: =SUM(D100:D111) -> 1892660.9 | E113: =IF(D113<>0,F113/D113,0) -> 3.659381504 | F113: =SUM(F100:F111) -> 6925968.29 | H113: =SUM(H100:H111) -> 2001474.51 | I113: =IF(H113<>0,J113/H113,0) -> 0.8701980174 | J113: =SUM(J100:J111) -> 1741679.15 | L113: =SUM(L100:L111) -> 1602145.59 | M113: =IF(L113<>0,N113/L113,0) -> 2.02 | N113: =SUM(N100:N111) -> 3236334.092 | P113: =SUM(P100:P111) -> 4978013.242
N115: Low Voltage Switchgear Credit (if applicable) | P115: ='5. UTRs and Sub-Transmission'!I95 -> 0
N117: Total including deduction for Low Voltage Switchgear Credit | P117: =P113+P115 -> 4978013.242

Sheet 9. RTSR Rates to Forecast
A13: The purpose of this sheet is to re-align the current RTS Network Rates to recover current wholesale network costs.
A15: Rate Class | B15: Rate Description | C15: Unit | D15: Current RTSR-Network | E15: Loss Adjusted Billed kWh | F15: Billed kW | G15: Billed Amount | H15: Billed Amount % | I15: Current Wholesale Billing | J15: Adjusted RTSR Network
A17: Residential | B17: RTSR - Network | C17: kWh | D17: 0.0082 | E17: 296797354.8 | G17: =ROUND(D17*E17, 2) -> 2433738.31 | H17: =G17/7116266.08 -> 0.3419965306 | I17: =H17*total_current_wholesale_network -> 2368498.346 | J17: =IF(ISERROR(I17/E17), 0, I17/E17) -> 0.007980186845
A18: General Service Less Than 50 kW | B18: RTSR - Network | C18: kWh | D18: 0.0073 | E18: 103281151.3 | G18: =ROUND(D18*E18, 2) -> 753952.4 | H18: =G18/7116266.08 -> 0.1059477529 | I18: =H18*total_current_wholesale_network -> 733741.588 | J18: =IF(ISERROR(I18/E18), 0, I18/E18) -> 0.007104312632
A19: General Service 50 to 4,999 kW | B19: RTSR - Network | C19: kW | D19: 2.5047 | F19: 1400645.34 | G19: =ROUND(D19*F19, 2) -> 3508196.38 | H19: =G19/7116266.08 -> 0.4929827441 | I19: =H19*total_current_wholesale_network -> 3414153.974 | J19: =IF(ISERROR(I19/F19), 0, I19/F19) -> 2.437557801
A20: Unmetered Scattered Load | B20: RTSR - Network | C20: kWh | D20: 0.0043 | E20: 1564629.648 | G20: =ROUND(D20*E20, 2) -> 6727.91 | H20: =G20/7116266.08 -> 0.0009454269872 | I20: =H20*total_current_wholesale_network -> 6547.558397 | J20: =IF(ISERROR(I20/E20), 0, I20/E20) -> 0.004184733688
A21: Street Lighting | B21: RTSR - Network | C21: kW | D21: 2.4098 | F21: 22527 | G21: =ROUND(D21*F21, 2) -> 54285.56 | H21: =G21/7116266.08 -> 0.007628376931 | I21: =H21*total_current_wholesale_network -> 52830.35507 | J21: =IF(ISERROR(I21/F21), 0, I21/F21) -> 2.345201539
A22: Sentinel Lighting | B22: RTSR - Network | C22: kW | D22: 2.3389 | F22: 1363.293924 | G22: =ROUND(D22*F22, 2) -> 3188.61 | H22: =G22/7116266.08 -> 0.000448073465 | I22: =H22*total_current_wholesale_network -> 3103.134581 | J22: =IF(ISERROR(I22/F22), 0, I22/F22) -> 2.276203633
A23: Embedded Distributor | B23: RTSR - Network | C23: kW | D23: 2.5047 | F23: 142203.42 | G23: =ROUND(D23*F23, 2) -> 356176.91 | H23: =G23/7116266.08 -> 0.05005109505 | I23: =H23*total_current_wholesale_network -> 346629.0598 | J23: =IF(ISERROR(I23/F23), 0, I23/F23) -> 2.43755783
A25: The purpose of this table is to re-align the current RTS Connection Rates to recover current wholesale connection costs.
A26: Rate Class | B26: Rate Description | C26: Unit | D26: Current RTSR-Connection | E26: Loss Adjusted Billed kWh | F26: Billed kW | G26: Billed Amount | H26: Billed Amount % | I26: Current Wholesale Billing | J26: Adjusted RTSR-Connection
A28: Residential | B28: RTSR - Connection | C28: kWh | D28: 0.0056 | E28: 296797354.8 | G28: =ROUND(D28*E28, 2) -> 1662065.19 | H28: =G28/4786875.44 -> 0.3472129599 | I28: =H28*Total_Current_Wholesale_Lineplus -> 1728247.272 | J28: =IF(ISERROR(I28/E28), 0, I28/E28) -> 0.005822987449
A29: General Service Less Than 50 kW | B29: RTSR - Connection | C29: kWh | D29: 0.0049 | E29: 103281151.3 | G29: =ROUND(D29*E29, 2) -> 506077.64 | H29: =G29/4786875.44 -> 0.1057219153 | I29: =H29*Total_Current_Wholesale_Lineplus -> 526229.2393 | J29: =IF(ISERROR(I29/E29), 0, I29/E29) -> 0.005095113993
A30: General Service 50 to 4,999 kW | B30: RTSR - Connection | C30: kW | D30: 1.6685 | F30: 1400645.34 | G30: =ROUND(D30*F30, 2) -> 2336976.75 | H30: =G30/4786875.44 -> 0.4882050472 | I30: =H30*Total_Current_Wholesale_Lineplus -> 2430033.26 | J30: =IF(ISERROR(I30/F30), 0, I30/F30) -> 1.734938311
A31: Unmetered Scattered Load | B31: RTSR - Connection | C31: kWh | D31: 0.0049 | E31: 1564629.648 | G31: =ROUND(D31*E31, 2) -> 7666.69 | H31: =G31/4786875.44 -> 0.001601606329 | I31: =H31*Total_Current_Wholesale_Lineplus -> 7971.97135 | J31: =IF(ISERROR(I31/E31), 0, I31/E31) -> 0.005095117148
A32: Street Lighting | B32: RTSR - Connection | C32: kW | D32: 1.5403 | F32: 22527 | G32: =ROUND(D32*F32, 2) -> 34698.34 | H32: =G32/4786875.44 -> 0.007248640671 | I32: =H32*Total_Current_Wholesale_Lineplus -> 36079.99963 | J32: =IF(ISERROR(I32/F32), 0, I32/F32) -> 1.601633579
A33: Sentinel Lighting | B33: RTSR - Connection | C33: kW | D33: 1.5583 | F33: 1363.293924 | G33: =ROUND(D33*F33, 2) -> 2124.42 | H33: =G33/4786875.44 -> 0.0004438009776 | I33: =H33*Total_Current_Wholesale_Lineplus -> 2209.012674 | J33: =IF(ISERROR(I33/F33), 0, I33/F33) -> 1.620349534
A34: Embedded Distributor | B34: RTSR - Connection | C34: kW | D34: 1.6685 | F34: 142203.42 | G34: =ROUND(D34*F34, 2) -> 237266.41 | H34: =G34/4786875.44 -> 0.04956602965 | I34: =H34*Total_Current_Wholesale_Lineplus -> 246714.1651 | J34: =IF(ISERROR(I34/F34), 0, I34/F34) -> 1.734938338
A36: The purpose of this table is to update the re-aligned RTS Network Rates to recover future wholesale network costs.
A37: Rate Class | B37: Rate Description | C37: Unit | D37: Adjusted RTSR-Network | E37: Loss Adjusted Billed kWh | F37: Billed kW | G37: Billed Amount | H37: Billed Amount % | I37: Current Wholesale Billing | J37: Proposed RTSR-Network
A39: Residential | B39: RTSR - Network | C39: kWh | D39: 0.007980186845 | E39: 296797354.8 | G39: =IF(ISERROR(D39*E39), 0, ROUND(D39*E39, 2)) -> 2368498.35 | H39: =G39/6925504.02 -> 0.341996531 | I39: =H39*forecast_wholesale_network -> 2368657.129 | J39: =IF(ISERROR(I39/E39), 0, I39/E39) -> 0.007980721832
A40: General Service Less Than 50 kW | B40: RTSR - Network | C40: kWh | D40: 0.007104312632 | E40: 103281151.3 | G40: =IF(ISERROR(D40*E40), 0, ROUND(D40*E40, 2)) -> 733741.59 | H40: =G40/6925504.02 -> 0.1059477531 | I40: =H40*forecast_wholesale_network -> 733790.7784 | J40: =IF(ISERROR(I40/E40), 0, I40/E40) -> 0.007104788909
A41: General Service 50 to 4,999 kW | B41: RTSR - Network | C41: kW | D41: 2.437557801 | F41: 1400645.34 | G41: =ROUND(D41*F41, 2) -> 3414153.97 | H41: =G41/6925504.02 -> 0.4929827432 | I41: =H41*forecast_wholesale_network -> 3414382.847 | J41: =IF(ISERROR(I41/F41), 0, I41/F41) -> 2.437721206
A42: Unmetered Scattered Load | B42: RTSR - Network | C42: kWh | D42: 0.004184733688 | E42: 1564629.648 | G42: =IF(ISERROR(D42*E42), 0, ROUND(D42*E42, 2)) -> 6547.56 | H42: =G42/6925504.02 -> 0.0009454272182 | I42: =H42*forecast_wholesale_network -> 6547.998934 | J42: =IF(ISERROR(I42/E42), 0, I42/E42) -> 0.004185015247
A43: Street Lighting | B43: RTSR - Network | C43: kW | D43: 2.345201539 | F43: 22527 | G43: =ROUND(D43*F43, 2) -> 52830.36 | H43: =G43/6925504.02 -> 0.007628377638 | I43: =H43*forecast_wholesale_network -> 52833.90163 | J43: =IF(ISERROR(I43/F43), 0, I43/F43) -> 2.345358975
A44: Sentinel Lighting | B44: RTSR - Network | C44: kW | D44: 2.276203633 | F44: 1363.293924 | G44: =ROUND(D44*F44, 2) -> 3103.13 | H44: =G44/6925504.02 -> 0.0004480728032 | I44: =H44*forecast_wholesale_network -> 3103.338027 | J44: =IF(ISERROR(I44/F44), 0, I44/F44) -> 2.276352864
A45: Embedded Distributor | B45: RTSR - Network | C45: kW | D45: 2.43755783 | F45: 142203.42 | G45: =ROUND(D45*F45, 2) -> 346629.06 | H45: =G45/6925504.02 -> 0.05005109505 | I45: =H45*forecast_wholesale_network -> 346652.2972 | J45: =IF(ISERROR(I45/F45), 0, I45/F45) -> 2.437721239
A47: The purpose of this table is to update the re-aligned RTS Connection Rates to recover future wholesale connection costs.
A48: Rate Class | B48: Rate Description | C48: Unit | D48: Adjusted RTSR-Connection | E48: Loss Adjusted Billed kWh | F48: Billed kW | G48: Billed Amount | H48: Billed Amount % | I48: Current Wholesale Billing | J48: Proposed RTSR-Connection
A50: Residential | B50: RTSR - Connection | C50: kWh | D50: 0.005822987449 | E50: 296797354.8 | G50: =ROUND(D50*E50, 2) -> 1728247.27 | H50: =G50/4977484.92 -> 0.3472129595 | I50: =H50*forecast_wholesale_lineplus -> 1728430.71 | J50: =IF(ISERROR(I50/E50), 0, I50/E50) -> 0.005823605509
A51: General Service Less Than 50 kW | B51: RTSR - Connection | C51: kWh | D51: 0.005095113993 | E51: 103281151.3 | G51: =ROUND(D51*E51, 2) -> 526229.24 | H51: =G51/4977484.92 -> 0.1057219155 | I51: =H51*forecast_wholesale_lineplus -> 526285.0952 | J51: =IF(ISERROR(I51/E51), 0, I51/E51) -> 0.005095654807
A52: General Service 50 to 4,999 kW | B52: RTSR - Connection | C52: kW | D52: 1.734938311 | F52: 1400645.34 | G52: =ROUND(D52*F52, 2) -> 2430033.26 | H52: =G52/4977484.92 -> 0.4882050471 | I52: =H52*forecast_wholesale_lineplus -> 2430291.189 | J52: =IF(ISERROR(I52/F52), 0, I52/F52) -> 1.735122461
A53: Unmetered Scattered Load | B53: RTSR - Connection | C53: kWh | D53: 0.005095117148 | E53: 1564629.648 | G53: =ROUND(D53*E53, 2) -> 7971.97 | H53: =G53/4977484.92 -> 0.001601606058 | I53: =H53*forecast_wholesale_lineplus -> 7972.816163 | J53: =IF(ISERROR(I53/E53), 0, I53/E53) -> 0.005095657093
A54: Street Lighting | B54: RTSR - Connection | C54: kW | D54: 1.601633579 | F54: 22527 | G54: =ROUND(D54*F54, 2) -> 36080 | H54: =G54/4977484.92 -> 0.007248640745 | I54: =H54*forecast_wholesale_lineplus -> 36083.82962 | J54: =IF(ISERROR(I54/F54), 0, I54/F54) -> 1.601803596
A55: Sentinel Lighting | B55: RTSR - Connection | C55: kW | D55: 1.620349534 | F55: 1363.293924 | G55: =ROUND(D55*F55, 2) -> 2209.01 | H55: =G55/4977484.92 -> 0.0004438004405 | I55: =H55*forecast_wholesale_lineplus -> 2209.244469 | J55: =IF(ISERROR(I55/F55), 0, I55/F55) -> 1.62051956
A56: Embedded Distributor | B56: RTSR - Connection | C56: kW | D56: 1.734938338 | F56: 142203.42 | G56: =ROUND(D56*F56, 2) -> 246714.17 | H56: =G56/4977484.92 -> 0.04956603063 | I56: =H56*forecast_wholesale_lineplus -> 246740.3568 | J56: =IF(ISERROR(I56/F56), 0, I56/F56) -> 1.735122522

Sheet hidden1 (hidden)
A1: =IF('3. Rate Classes'!L17=1, '3. Rate Classes'!C17, "") -> Residential | B1: 1
A2: =IF('3. Rate Classes'!L18=1, '3. Rate Classes'!C18, "") -> General Service Less Than 50 kW | B2: 2
A3: =IF('3. Rate Classes'!L19=1, '3. Rate Classes'!C19, "") -> General Service 50 to 4,999 kW | B3: 3
A4: =IF('3. Rate Classes'!L20=1, '3. Rate Classes'!C20, "") -> Unmetered Scattered Load | B4: 4
A5: =IF('3. Rate Classes'!L21=1, '3. Rate Classes'!C21, "") -> Street Lighting | B5: 5
A6: =IF('3. Rate Classes'!L22=1, '3. Rate Classes'!C22, "") -> Sentinel Lighting | B6: 6
A7: =IF('3. Rate Classes'!L23=1, '3. Rate Classes'!C23, "") -> Embedded Distributor | B7: 7
A8: =IF('3. Rate Classes'!L24=1, '3. Rate Classes'!C24, "") ->  | B8: 8
A9: =IF('3. Rate Classes'!L25=1, '3. Rate Classes'!C25, "") ->  | B9: 9
A10: =IF('3. Rate Classes'!L26=1, '3. Rate Classes'!C26, "") ->  | B10: 10
A11: =IF('3. Rate Classes'!L27=1, '3. Rate Classes'!C27, "") ->  | B11: 11
A12: =IF('3. Rate Classes'!L28=1, '3. Rate Classes'!C28, "") ->  | B12: 12
A13: =IF('3. Rate Classes'!L29=1, '3. Rate Classes'!C29, "") ->  | B13: 13
A14: =IF('3. Rate Classes'!L30=1, '3. Rate Classes'!C30, "") ->  | B14: 14
A15: =IF('3. Rate Classes'!L31=1, '3. Rate Classes'!C31, "") ->  | B15: 15
A16: =IF('3. Rate Classes'!L32=1, '3. Rate Classes'!C32, "") ->  | B16: 16
A17: =IF('3. Rate Classes'!L33=1, '3. Rate Classes'!C33, "") ->  | B17: 17
A18: =IF('3. Rate Classes'!L34=1, '3. Rate Classes'!C34, "") ->  | B18: 18
A19: =IF('3. Rate Classes'!L35=1, '3. Rate Classes'!C35, "") ->  | B19: 19
A20: =IF('3. Rate Classes'!L36=1, '3. Rate Classes'!C36, "") ->  | B20: 20
A21: =IF('3. Rate Classes'!L37=1, '3. Rate Classes'!C37, "") ->  | B21: 21
A22: =IF('3. Rate Classes'!L38=1, '3. Rate Classes'!C38, "") ->  | B22: 22
